Workbook

Sheet Cover Page
D1: Add company logo
N2: Version 23.4a (for incinerators) - 15/11/2023
N4: Note that there is another version of this template available for co-incinerators
B8: Add photo
N13: Notes:
N14: This template may require adjustments by individual operators to meet specific reporting requirements as defined in the site Permit(s)
B29: Annual Performance Report 2023
B31: Permit EPR/HP3341QV/V002
B33: Stoke Energy from Waste
B35: NA
B37: North Midlands Operations Ltd
B39: Year: | C39: 2023
B41: Address: | C41: Campbell Road Sideway Stoke-on-Trent Staffordshire ST4 4DX
B43: Tel: | C43: 01782 412131
B45: Email: | C45: kate.harrop@cobaltenergy.co.uk
B47: Prepared by: | C47: A. Whittingham & C. Ballard | F47: Position: | G47: Q&E Coordinators
B49: Approved by: | C49: K. Harrop | F49: Position: | G49: Group Q&E Manager
B51: Version: | C51: 1
B53: Issue Date: | C53: 2024-01-31

Sheet Contents
A1: =+'Cover Page'!$B$29 -> Annual Performance Report 2023 | E1: =+'Cover Page'!$B$33 -> Stoke Energy from Waste
A3: Contents | K3: Notes:
A4: Section | B4: Subject | H4: Page | K4: Section references and Page nos. to be inserted
B5: Facility Information | H5: 4 | K5: Sections and Subjects may require adjustment by individual operators to meet specific reporting requirements as defined in the sites Permit(s)
B6: Operational Data | H6: 5
B7: Operational Summary | H7: 9
B8: Performance Form 1 | H8: 10
B9: Energy Form 1 | H9: 12
B10: Permit Compliance | H10: 13
B11: Improvements | H11: 14
B12: Residue Quality | H12: 15
B13: Public and Stakeholder Liaison | H13: 17
B14: Carbon Dioxide & Nitrous Oxide Emissions | H14: 18
B15: Emissions to Water | H15: 20
B16: Emissions to Air (periodically monitored) | H16: 21
B17: Emissions to Air (continuously monitored) | H17: 23
B18: Hydrogen Chloride emissions | H18: 25
B19: Sulphur Dioxide emsissions | H19: 26
B20: Oxides of Nitrogen emissions | H20: 27
B21: Total Organic Carbon emissions | H21: 28
B22: Particulate Matter emissions | H22: 29
B23: Carbon Monoxide emissions (half-hourly) | H23: 30
B24: Carbon Monoxide emissions (10-min avg) | H24: 32
A27: Version Control
A28: Section | B28: Information | H28: Date
A29: 1 | B29: Original | H29: 2024-01-31
A35: Distribution
A36: Copy | B36: Name, Role | H36: No.
A45: This report is required under the Industrial Emissions Directive’s Article 55(2) requirements on reporting and public information on waste incineration plants and co-incineration plants, which require the operator to produce an annual report on the functioning and monitoring of the plant and make it available to the public.

Sheet Facility Info
A1: =+'Cover Page'!$B$29 -> Annual Performance Report 2023 | E1: =+'Cover Page'!$B$33 -> Stoke Energy from Waste
A3: Plant Description and Design | K3: Notes:
A5: The Stoke Energy from Waste Facility utilises municipal waste to recover energy in the form of electricity and steam for export to the local grid. The facility processes approximately 210,000 tpa of waste in two combustion streams (combined capacity of 24 tonnes per hour) which operate using moving grate furnace systems. The heat produced during combustion is converted to electrical energy by generating steam in high-pressure boilers and expanding the steam through a steam turbine. When operating at full load, the plant will typically generate around 14.2 MW of electricity and, after satisfying its own power needs, exports approximately 12 MW of electricity to the grid. The installation provides a sustainable method of waste disposal and recovery for the whole of the North Staffordshire conurbation, comprising the districts of Stoke-on- Trent, Newcastle under Lyme, Staffordshire Moorlands the northern area of Stafford and limited quantities from East Staffordshire, Leicestershire and Derbyshire, which would usually be taken to landfill. The process includes waste reception and storage, combustion, waste heat boilers, abatement of flue gases and the onsite storage of residues produced, namely IBA and APCr. The plant is operated in accordance with its Environmental Management System which is designed to meet the requirements of ISO14001:2015. | K5: Include summary of plant design, design capacity, no. of combustion lines, electrical and heat capacity and any other general information that descibes the facility, its location and purpose
A20: Summary of Operational Processes and Procedures
A22: The Plant is regulated under the terms of a Permit issued by the Environment Agency (HP3341QV) which contains conditions to ensure that the requirements of the Industrial Emissions Directive are incorporated and shall be met. North Midlands Operations Ltd operates all of its sites under an Integrated Management System certified to ISO 14001:2015 (environmental management), ISO 9001:2015 (quality management), and ISO 45001:2018 (health and safety management). In terms of plant operation, the incineration processes have been designed against the background of a detailed assessment of the prevailing environmental conditions at the site location, and are based upon the Best Available Technology (BAT) as detailed both in the original Authorisation application and the application for the Permit issued under the Pollution Prevention and Control (England and Wales) Regulations. These include, but are not limited to, the following: • Well proven process plant developed specifically for incineration of municipal solid wastes • Efficient, comprehensive process control and monitoring systems to ensure optimum conditions for complete combustion of the wastes and to minimise emissions from the processes • Operations confined within buildings under slight negative pressure in order to contain and minimise emissions such as dust and odour • Qualified and experienced operating and maintenance personnel to implement procedures to ensure that the required high standards are maintained. Operating and Maintenance Procedures are established according to an internationally recognised system of quality assurance • Multi-stage high efficiency flue gas cleaning systems comprising deNOx Selective Non-Catalytic Reduction (SNCR) for the removal of oxides of nitrogen, activated carbon and lime semi-dry acid gas scrubbing for controlling acid gas, dioxins/furans and mercury emissions • Final stage flue gas abatement for particulate materials using fabric filtration • Residues from the combustion process and from the flue gas cleaning system disposed of by approved means, maximising recycling wherever possible • Waste water from the process is neutralised and recycled as far as is practicable to minimise the quantities released to sewers • Provision of bunds or double skinned vessels for storage of fuel and chemicals in order to prevent accidental and inappropriate discharge to the public sewers and watercourse The site is complies with the new Waste Incineration BAT Conclusions, which came into effect on 03.12.2023. | K22: Include summary of key processes and procedures such as (but not limited to); waste reception, control rooms, grate, bed and bolier, energy & heat generation, cooling systems, residue management, emission controls, health and safety systems, maintenance

Sheet Operational Data
A1: =+'Cover Page'!$B$29 -> Annual Performance Report 2023 | E1: =+'Cover Page'!$B$33 -> Stoke Energy from Waste
A3: Operational Data
A4: Plant Size | B4: 210000 | D4: tonnes pa | F4: MWth | G4: 14 | H4: MWe | J4: Notes:
A5: No. of combustion lines | B5: 2 | D5: No. of Turbines: | F5: 1 | J5: * - RDF to include SRF
J6: ** - Combusted tonnage = tonnes delivered in period + (tonnes in bunker at start of period – tonnes in bunker at end of period), or equivalent calculation depending on plant type
A7: Waste types received | B7: Unit | C7: Q1 | D7: Q2 | E7: Q3 | F7: Q4 | G7: Year Total | H7: %
A8: Household / Local Authority | B8: tonnes | C8: 45293 | D8: 38941.84 | E8: 42854 | F8: 44860 | G8: =SUM(C8:F8) -> 171948.84 | H8: =IF(G8>0,G8/$G$18,"-") -> 0.9346183956
A9: Commercial & Industrial | C9: 1585 | D9: 1346 | E9: 1197 | F9: 2528 | G9: =SUM(C9:F9) -> 6656 | H9: 0.03617831933 | J9: *** - CHP plants only
A10: Hazardous | G10: 0 | H10: - | J10: **** Availability Definition: 'the availability of a line is to be calculated by the number of hours the line reported Continuously Monitored emission levels to the Regulator through the calendar year divided by the total number of hours in that year. The overall plant availability is calculated as the Mean of all lines in the plant. For clarity this includes periods of abnormal operation.' Rationale: The primary function of an Energy from Waste facility is the disposal of waste. It follows therefore that the availability of a plant is determined by the period of time a facility spends undertaking this activity.
A11: Clinical | G11: 0 | H11: -
A12: Waste wood (biomass) | G12: 0 | H12: -
A13: Refuse Derived Fuel * - H'hold/LA | C13: 1521.13 | D13: 2123.16 | E13: 1529.7 | F13: 198.76 | G13: =SUM(C13:F13) -> 5372.75 | H13: 0.02920328503
A14: Refuse Derived Fuel * - C&I | G14: 0 | H14: -
A15: Other [Please specify] | G15: 0 | H15: -
A16: Other [Please specify] | G16: 0 | H16: -
A17: Other [Please specify] | G17: 0 | H17: -
A18: Total waste received | C18: =SUM(C8:C17) -> 48399.13 | D18: =SUM(D8:D17) -> 42411 | E18: =SUM(E8:E17) -> 45580.7 | F18: =SUM(F8:F17) -> 47586.76 | G18: 183977.59
A19: Rejected Waste | G19: =SUM(C19:F19) -> 0 | H19: =IF(G19>0,G19/$G$18,"-") -> -
A20: Unprocessed waste transferred out | D20: 469 | G20: =SUM(C20:F20) -> 469 | H20: =IF(G20>0,G20/$G$18,"-") -> 0.002549223522
A21: Total waste combusted ** | C21: 48521 | D21: 41107 | E21: 47098 | F21: 48316 | G21: =SUM(C21:F21) -> 185042
J22: Password for protected cells A password has been set to prevent accidental editing of cells with formulae. If you still need to make an edit for some reason then the password = 1234
A23: Energy Usage / Export | B23: Unit | C23: Q1 | D23: Q2 | E23: Q3 | F23: Q4 | G23: Year Total | H23: KWh/te
A24: Power Generated | B24: MWh | C24: 24285 | D24: 18589 | E24: 24049 | F24: 26086 | G24: =SUM(C24:F24) -> 93009 | H24: =IF(G24>0,G24*1000/$G$21,"-") -> 502.6372391
A25: Power Exported | C25: 20740 | D25: 15284.37 | E25: 20707.44 | F25: 22624.82 | G25: =SUM(C25:F25) -> 79356.63 | H25: =IF(G25>0,G25*1000/$G$21,"-") -> 428.8573945
A26: Power Used on site | C26: 3545 | D26: 3304 | E26: 3341 | F26: 3462 | G26: =SUM(C26:F26) -> 13652 | H26: =IF(G26>0,G26*1000/$G$21,"-") -> 73.77784503
A27: Power Imported | C27: 304 | D27: 517 | E27: 34.67 | F27: 0.635 | G27: 856.305 | H27: =IF(G27>0,G27*1000/$G$21,"-") -> 4.62762508
A28: Parasitic Load | B28: % | C28: =IF(C24>0,1-C25/(C24+C27),"-") -> 0.1565334092 | D28: =IF(D24>0,1-D25/(D24+D27),"-") -> 0.200022506 | E28: =IF(E24>0,1-E25/(E24+E27),"-") -> 0.1401875213 | F28: =IF(F24>0,1-F25/(F24+F27),"-") -> 0.1327045439 | G28: =IF(G24>0,1-G25/(G24+G27),"-") -> 0.1545690924
A29: Thermal Energy Produced *** | B29: MWh | G29: =SUM(C29:F29) -> 0 | H29: =IF(G29>0,G29*1000/$G$21,"-") -> -
A30: Thermal Energy Exported *** | G30: 0 | H30: =IF(G30>0,G30*1000/$G$21,"-") -> -
A31: R1 value (if applicable) | B31: R1
A33: Waste Disposal & Recovery | B33: Unit | C33: Q1 | D33: Q2 | E33: Q3 | F33: Q4 | G33: Year Total | H33: % inputs
A34: APC Residues - produced | B34: tonnes | C34: 1629 | D34: 1345 | E34: 1276 | F34: 1707 | G34: =SUM(C34:F34) -> 5957 | H34: =IF(G34>0,G34/$G$21,"-") -> 0.03219269139
A35: IBA - produced | C35: 8565 | D35: 7777 | E35: 8147 | F35: 8289 | G35: 32778 | H35: =IF(G35>0,G35/$G$21,"-") -> 0.1771381632
A36: Metals recycling | C36: 916 | D36: 765 | E36: 694 | F36: 869 | G36: =SUM(C36:F36) -> 3244 | H36: 0.01753115509
A37: Other | C37: 0 | D37: 0 | E37: 0 | F37: 0 | G37: =SUM(C37:F37) -> 0 | H37: -
A38: Other | C38: 0 | D38: 0 | E38: 0 | F38: 0 | G38: 0 | H38: -
A39: Other | C39: 0 | D39: 0 | E39: 0 | F39: 0 | G39: 0 | H39: -
A41: Raw Material Usage | B41: Unit | C41: Q1 | D41: Q2 | E41: Q3 | F41: Q4 | G41: Year Total | H41: kg or Ltr /te
A42: Mains Water | B42: ltrs | C42: 7665000 | D42: 8193000 | E42: 9170000 | F42: 9239000 | G42: =SUM(C42:F42) -> 34267000 | H42: =IF(G42>0,G42/$G$21,"-") -> 185.184985
A43: Other Water | B43: ltrs | C43: 10599000 | D43: 10181000 | E43: 12148000 | F43: 16187000 | G43: 49115000 | H43: =IF(G43>0,G43/$G$21,"-") -> 265.4262276
A44: Ammonia | B44: kgs | G44: 0 | H44: -
A45: Urea | B45: kgs | C45: 68000 | D45: 69000 | E45: 87000 | F45: 93000 | G45: =SUM(C45:F45) -> 317000 | H45: 1.713124588
A46: Activated Carbon | B46: kgs | C46: 7000 | D46: 5000 | E46: 4000 | F46: 8000 | G46: 24000 | H46: 0.1297002843
A47: Lime / hydrated lime | B47: kgs | C47: 488000 | D47: 475000 | E47: 431000 | F47: 615000 | G47: 2009000 | H47: 10.85699463
A48: Fuel oil | B48: ltrs | C48: 63170 | D48: 63702 | E48: 72750 | F48: 54933 | G48: 254555 | H48: 1.375660661
A49: Gas | B49: cuf | G49: 0
A50: Other | G50: 0
A52: Summary | B52: Line/Unit | C52: Q1 | D52: Q2 | E52: Q3 | F52: Q4 | G52: Year Total | I52: Hrs in year
A53: Availability of waste combustion by line, hrs **** | B53: =+B5 -> 2 | C53: 1957 | D53: 1972 | E53: 1739.63 | F53: 2157.52 | G53: =SUM(C53:F53) -> 7826.15 | H53: =+G53/$I$53 -> 0.8933961187 | I53: 8760
B54: 2 | C54: 1966.65 | D54: 1457.03 | E54: 2190.28 | F54: 2009.7 | G54: 7623.66 | H54: =+G54/$I$53 -> 0.8702808219
B55: 3 | G55: 0 | H55: 0
B56: 4 | G56: 0 | H56: 0
B57: 5 | G57: =SUM(C57:F57) -> 0 | H57: 0
A58: Overall Availability, mean avg. of all lines, hrs | G58: =AVERAGE(G53:G57) -> 3089.962 | H58: 0.3527353881
A59: Hours of turbine operations, hrs | B59: 1 | C59: 1927.31 | D59: 1602.6 | E59: 2184.12 | F59: 2209 | G59: 7923.03 | H59: 0.9044554795
A60: Hours of turbine operations, hrs | B60: 2 | G60: 0 | H60: 0
A61: Hours of heat / steam export | G61: 0 | H61: =IF(B61>0,G60/I53,"n/a") -> n/a
A62: Net Calorific Value of waste | B62: MJ/kg | C62: 8.37 | D62: 7.36 | E62: 8.68 | F62: 8.7 | G62: 7.635
A63: Abnormal Events | B63: qty. | D63: 1 | E63: 2 | G63: 3 | H63: =IF(G63>0,"yes","no") -> yes
A64: Abnormal operation | B64: hours | D64: 0.5 | E64: 1 | G64: 1.5 | H64: =+(G64)/I53 -> 0.0001712328767
A65: Permit Breaches | B65: qty. | C65: 3 | D65: 3 | E65: 2 | F65: 3 | G65: 11 | H65: =IF(G65>0,"yes","no") -> yes

Sheet Operational Summary
A1: =+'Cover Page'!$B$29 -> Annual Performance Report 2023 | E1: =+'Cover Page'!$B$33 -> Stoke Energy from Waste
A3: Summary of Plant Operations and Maintenance during the reporting year | K3: Notes:
A5: In 2023, grate bar issues were the main reason of boiler unavailability in Stoke. After experiencing a number of quality issues, it has now been agreed that only Martin bars will be used for replacements. o 28 rows grate bars replaced for Martin OEM Bars – 7 rows per grate run. o ID Fan 1 motor replaced due to showing signs of distress. o ID Fans 1 & 2 old control dampers removed. o Carbon systems upgraded to provide redundancy availability. o 4 off new sootblowers fitted – 2 per boiler. o All 80 superheater panels (40 per boiler) replaced for new as per tube replacement regime. o Boiler availability including outages was 88.3%. Turbine including outage periods and repair periods 90.45% o Turbine coupling reconditioned/replaced. A NEW coupling is held on site in addition. o TG health check performed which includes windings testing . o EDG serviced as per manufacturers recommendations. EDG also benefitted from a load bank test to check EDG maximum power output for a sustained period. o Fluorescent tubes/fittings replaced with LED’s when failures occurred – as part of an ongoing program. o Statutory inspections were regularly performed. Extensive scheduled maintenance was undertaken at the plants annual planned shutdown period: o Boilers thorough inspections performed. Thin pipes and worn refractory renewed. o Soot blowers and air hammers inspected and maintained. o Combustion system thoroughly inspected and worn parts replaced. o Auxiliary burners inspected and serviced. o Hydraulic packs serviced. o All 4 boiler pressure relief valves serviced. o Common vessels and main valves inspected. o Bag house filters and scrubbers cleaned, inspected and repaired where needed. The program of bags replacement continued. o Ducting and expansion joints inspections and repairs made. o Fly ash and bottom ash conveyors inspected and serviced. o Lime, urea and activated carbon systems cleaned and inspected. o Main fans and pumps inspected and serviced. The main electrical motors have been tested. o Main instrumentation calibrated. o Main electrical systems inspected and tested. | K5: Include summary of key operational and/or mainteanance activity undertaken in the year, such as any major component upgrades and/or replacements
A29: Summary of Residue Handling for the reporting year
A31: 2 main sources of residue arise from the operation of the plant: - Incinerator Bottom ash (IBA) (which also includes ferrous metals discharged within the ash) - Air Pollution Control residues (APCr) Residues from the flue gas treatment process (APCr) are discharged into an enclosed system which feed into double-skinned heavy-duty bags prior to removal from site for controlled treatment and disposal. These residues account for under 5% of the total weight of all refuse processed by the facility. The residues were sent - for most of 2023 - to Castle Waste Services Ltd's Ilkeston Waste Treatment and Transfer Facility (AP3337SJ). In mid November 2023, the residues were redirected to Augean South Ltd's Kings Cliffe East Northants Resource Management Facility (YP3138XB). These residues are ultimately disposed of in specialist landfill. Incinerator Bottom Ash (IBA) is discharged from the lower end of each grate into a water filled ash discharger, where it is quenched and then ejected onto a conveyor system. Ferrous metals are removed via magnetic separation. The resulting materials are stored in the storage bunkers prior to removal from site for recycling - the storage capacity for bottom ash residues and separated ferrous metals is sufficient to ensure 4 days storage. IBA is transferred offsite for further treatment and processing sites regularly between Mondays and Fridays and are scheduled to ensure sufficient storage capacity is maintained at all times. Collections are available at weekends if operational conditions require this facility. Bottom ash from North Midlands Operations Ltd is currently being sent to Johnsons Aggregates & Recycling Ltd Midlands Urban Mine in Ilkeston (MP3430AM) and Bunny site (DP3493CT). At these sites, additional ferrous and trace metals is removed, and the remaining material being further processed into usable aggregate in a zero to landfill process. | K31: Include in here a summary of residue handling regimes and destinations

Sheet Perf. Form 1
A1: =+'Cover Page'!C39 -> 2023 | B1: Annual Reporting Performance Form 1
A3: =+'Cover Page'!B31 -> Permit EPR/HP3341QV/V002 | F3: Operator: | G3: =+'Cover Page'!$B$33 -> Stoke Energy from Waste
A4: Facility: | B4: =+'Cover Page'!B33:I33 -> Stoke Energy from Waste | F4: Form: | G4: Performance 1
A6: Reporting Period from: | D6: 2023-01-01 | F6: to: | G6: 2023-12-31
A8: =+A1 -> 2023 | B8: Annual Reporting of Waste Disposal and Recovery
A9: Waste Description | C9: Disposal Route(s) | E9: Disposal Tonnes | G9: Recovery Tonnes | I9: % / tonne of waste incinerated
A10: 1) Hazardous Wastes
A11: APC Residues | C11: D13 | E11: 5957 | G11: 0 | I11: =IF((E11+G11)>0,(E11+G11)/'Operational Data'!$G$21, "-") -> 0.03219269139
A12: IBA | I12: =IF((E12+G12)>0,(E12+G12)/'Operational Data'!$G$21, "-") -> -
I13: =IF((E13+G13)>0,(E13+G13)/'Operational Data'!$G$21, "-") -> -
I14: =IF((E14+G14)>0,(E14+G14)/'Operational Data'!$G$21, "-") -> -
A15: Total Hazardous Waste | E15: =SUM(E11:F14) -> 5957 | G15: =SUM(G11:H14) -> 0 | I15: =IF((E15+G15)>0,(E15+G15)/'Operational Data'!$G$21, "-") -> 0.03219269139
A17: 2) Non-Hazardous Wastes
A18: IBA | C18: R04 | E18: 32778 | I18: =IF((E18+G18)>0,(E18+G18)/'Operational Data'!$G$21, "-") -> 0.1771381632
A19: Ferrous Metal | C19: R04 | E19: 3244 | I19: =IF((E19+G19)>0,(E19+G19)/'Operational Data'!$G$21, "-") -> 0.01753115509
A20: Process Water | E20: 4218 | I20: =IF((E20+G20)>0,(E20+G20)/'Operational Data'!$G$21, "-") -> 0.02279482496
I21: =IF((E21+G21)>0,(E21+G21)/'Operational Data'!$G$21, "-") -> -
I22: =IF((E22+G22)>0,(E22+G22)/'Operational Data'!$G$21, "-") -> -
A23: Total Non-Hazardous Waste | E23: =SUM(E18:F22) -> 40240 | G23: =SUM(G18:H22) -> 0 | I23: =IF((E23+G23)>0,(E23+G23)/'Operational Data'!$G$21, "-") -> 0.2174641433
A24: TOTAL WASTE | E24: =+E23+E15 -> 46197 | G24: =+G23+G15 -> 0 | I24: =IF((E24+G24)>0,(E24+G24)/'Operational Data'!$G$21, "-") -> 0.2496568347
A26: Operator’s comments :
A31: =+A1 -> 2023 | B31: Annual Reporting of Water and Other Raw Material Usage
A32: Raw Material | E32: Usage | G32: Unit | H32: Specific Useage | J32: Unit
A33: Mains Water | E33: =+'Operational Data'!G42 -> 34267000 | G33: m3 | H33: =IF(E33>0,E33/'Operational Data'!$G$21,"-") -> 185.184985 | J33: m3/te
A34: Total Water | E34: =+'Operational Data'!G43+'Operational Data'!G42 -> 83382000 | G34: m3 | H34: =IF(E34>0,E34/'Operational Data'!$G$21,"-") -> 450.6112126 | J34: m3/te
A35: Urea / Ammonia | E35: =+'Operational Data'!G45 -> 317000 | G35: kg | H35: =IF(E35>0,E35/'Operational Data'!$G$21,"-") -> 1.713124588 | J35: kg/te
A36: Activated Carbon | E36: =+'Operational Data'!G46 -> 24000 | G36: kg | H36: =IF(E36>0,E36/'Operational Data'!$G$21,"-") -> 0.1297002843 | J36: kg/te
A37: Lime / hydrated lime / Sodium Bicarb. | E37: =+'Operational Data'!G47 -> 2009000 | G37: kg | H37: =IF(E37>0,E37/'Operational Data'!$G$21,"-") -> 10.85699463 | J37: kg/te
A39: Operator’s comments :
A43: =+A31 -> 2023 | B43: Annual Reporting of other performance indicators
A44: Parameter | C44: Results by Line
C45: A1 | D45: A2 | E45: A3 | F45: A4 | G45: A5 | I45: Turbine 1 | J45: Turbine 2
A46: Operating hours for the year, hours | C46: 7827 | D46: 7824
A47: Number of periods of abnormal operation, qty. | C47: 2 | D47: 1
A48: Cumulative hours of abnormal operation for this year, hours | C48: 1 | D48: 0.5
A50: Operator’s comments :
A54: Signed: | G54: Date:

Sheet Energy Form 1
A1: =+'Cover Page'!C39 -> 2023 | B1: Annual Reporting of Energy Usage/Export
A3: =+'Cover Page'!B31 -> Permit EPR/HP3341QV/V002 | F3: Operator: | G3: =+'Cover Page'!$B$33 -> Stoke Energy from Waste
A5: Facility: | B5: =+'Cover Page'!B33:I33 -> Stoke Energy from Waste | F5: Form: | G5: Energy 1
A7: Reporting Period from: | D7: =+'Perf. Form 1'!D6:E6 -> 2023-01-01 | F7: to: | G7: =+'Perf. Form 1'!G6:H6 -> 2023-12-31
A9: Energy Source | D9: Energy Usage | F9: Unit | G9: Specific Useage (KWh/tonne incinerated
A10: Electricity Produced | D10: =+'Operational Data'!G24 -> 93009 | F10: MWh | G10: =+'Operational Data'!H24 -> 502.6372391
A11: Electricity Imported | D11: =+'Operational Data'!G27 -> 856.305 | F11: MWh | G11: =+'Operational Data'!H27 -> 4.62762508
A12: Electricity Exported | D12: =+'Operational Data'!G25 -> 79356.63 | F12: MWh | G12: =+'Operational Data'!H25 -> 428.8573945
A13: Gas Oil | F13: tonnes
A14: Steam/hot water exported | D14: =+'Operational Data'!G30 -> 0 | F14: GWh | G14: =+'Operational Data'!H30 -> -
A18: Operator’s comments :
A29: Signed: | G29: Date:

Sheet Permit Compliance
A1: =+'[1]Cover Page'!$B$29 -> Annual Performance Report 2023 | E1: =+'[1]Cover Page'!$B$33 -> Name of Facility as per Permit
A3: Summary of Permit Compliance
A5: Compliance with permit limits for continuously monitored pollutants
A7: The plant met its emission limits as shown in the table below:
A8: Substance | C8: Percentage time compliant during operationNote 1 | L8: Notes:
C9: Half-hourly limit | F9: Daily limit | L9: Note 1: Please report to 2 decimal places, i.e. xx.xx% Note 2: Please provide a brief summary of each notification or non-compliance in the table (rather than just referring to notifications that were sent to the Regulator), including stating the value of measured result for any ELV exceedances.
A10: Particulates | C10: 1 | F10: 1
A11: Oxides of nitrogen | C11: 1 | F11: 1
A12: Sulphur dioxide | C12: 1 | F12: 1
A13: Carbon monoxide | C13: 1 | F13: 1
A14: Total organic carbon | C14: 1 | F14: 1
A15: Hydrogen chloride | C15: 0.9995 | F15: 0.9918
A16: Hydrogen fluoride | C16: 1 | F16: 1
C17: 0.9999 | F17: 0.9988
A19: Summary of any notifications or non-compliances under the permit
A20: Date | B20: Summary of notification or non-compliance [including Line/Reference]Note 2 | E20: Reason | H20: Measures taken to prevent reoccurrence
A21: 2023-01-09 | B21: A2, HCl, Half-Hourly, 82.55mg/m3 | E21: Explosive cleaning issue. | H21: Investigated cleaning methods.
A22: 14/01/2023 | B22: A2, HCl, Daily, 14.72mg/m3 | E22: Explosive cleaning issue. | H22: Change post-clean process
A23: 28/02/2023 | B23: A2, HCl, Half-Hourly, 85.85mg/m3 | E23: Waste feedstock | H23: Increase homogenisation.
A24: 26/05/2023 | B24: A1, HCl, Half-Hourly, Ab Ops, 79.33mg/m3 | E24: Waste feed blockage. | H24: Increase inspection.
A25: 2023-06-05 | B25: A1, HCl, Half-Hourly, 67.73mg/m3 | E25: Incorrect operator response. | H25: Procedure trained out.
A26: 2023-06-05 | B26: A2, HCl, Half-Hourly, 86.52mg/m3 | E26: Incorrect operator response. | H26: Procedure trained out.
A27: 22/06/2023 | B27: A2, HCl, Daily, 10.77mg/m3 | E27: Waste feedstock | H27: Update control system.
A28: 2023-07-05 | B28: A1, HCl, Daily, 10.28mg/m3 | E28: Explosive cleaning issue. | H28: Change post-clean process
A29: 2023-08-02 | B29: A1, HCl, Half-Hourly, 103.85mg/m3 | E29: Explosive cleaning issue. | H29: Changed frequency.
A30: 2023-08-18 | B30: A2, HCl, Half-Hourly, Ab Ops, 60.73mg/m3 | E30: Equipment failure (spindle) | H30: Replaced failed parts.
A31: 2023-08-25 | B31: A1, HCl, Half-Hourly, Ab Ops, 60.03mg/m3 | E31: Pump blockage. | H31: Unblocked pump.
A32: 2023-10-16 | B32: A1 HCl, Half-Hourly, 16.25mg/m3 | E32: Waste feedstock | H32: Lime system upgrade.
A33: 2023-10-16 | B33: A2, HCl, Half-Hourly, 79.91mg/m3 | E33: Waste feedstock | H33: Lime system upgrade.
A35: Summary of any complaints received and actions to taken to resolve them.
A36: Date | B36: Summary of complaint [including Line/Reference] | E36: Reason * | H36: Measures taken to prevent reoccurrence
E42: * including whether substantiated by the operator or the EA

Sheet Improvements
A1: =+'Cover Page'!$B$29 -> Annual Performance Report 2023 | E1: =+'Cover Page'!$B$33 -> Stoke Energy from Waste
A3: Summary of Plant Improvements
A5: Summary of any efficiency improvements that have been completed within the year.
A6: • Rolling programme of replacement of fluorescent tubes to LED’s under a programme of replacement. As fluorescents fail, they get replaced by LED. Various sodium lamps were also replaced with LED – streetlights, floodlights within plant. • Any motors purchased were chosen to be, as far as practicable, of the highest energy efficiency. • Air cooled condensers (ACC) were cleaned to improve generation efficiency. • The redundant ID Fan vanes were removed and an amount of sheet steel was rolled and welded in replacement of the vanes to improve gas flow and decrease ID fan motor loading. • A significant amount of lagging/cladding was replaced to improve thermal efficiency. • Lime slurry preparation system – improvement to the pump connections and the slurry “recipe”. More stringent checks of the slurry specific gravity carried out. Slurry lime content increased slightly to encompass the new limits under BREF. • Active Carbon type changed from FGT+ to IPK-J for increased reactivity efficiency.
A16: Summary of any permit improvement conditions that have been completed within the year and the resulting environmental benefits.
A17: The site has completed IC1-IC4 of the EPR/HP3341QV/V002 IC1: The site performed a study to determine the extent to which the operation of the current systems in place at the plant to minimise NOx emissions can be further optimised beyond the new BREF ELV. IC2: The site submitted a report on whether waste feed to the plant can be proven to have a low and stable mercury content. To complete the 6 tests successfully, we maximised the dosing of activated carbon into the flue gas to ensure 6 consecutive tests were successful. IC3: The site submitted a report on whether dioxin emissions to air are stable. To complete the 6 tests successfully, we maximised the dosing of activated carbon into the flue gas to ensure 6 consecutive tests were successful. IC4: We submitted a report calculating the Gross Electrical Efficiency of the plant.
A27: Summary of any changes to the plant or operating techniques which required a variation to the permit and a summary of the resulting environmental impact.
A28: N/A
A38: Summary of any other improvements made to the plant or planned to be made and a summary of the resulting environmental benefits.
A39: • Under BAT Ref (BREF) the active carbon system was upgraded to give redundancy with the dosing screws and motive air blowers. The screws were fitted with Variable Speed Drives. A heavy metals/dioxins test was carried out on this to prove the new dosing system was effective. When the results were obtained, this proved effective with no breaches. • A temperature mapping project was undertaken on the boilers under BREF to investigate the optimum injection point for the SNCR/Urea. The SNCR has a fairly narrow band on temperature for efficiency. • Air Cooled Condenser cleaning interval increased to Bi-Annual cleans as opposed to an annual clean. • Lime system pump connections were improved, to reduce risk of blockages. • Conveyor belt guarding now utilising a fortress key system to improve safety. • Fire doors in administration building replaced to meet current legislation standards. • Fire Risk Assessment performed and suggestions have/are being worked though.

Sheet Residue Quality
A1: =+'Cover Page'!$B$29 -> Annual Performance Report 2023 | E1: =+'Cover Page'!$B$33 -> Stoke Energy from Waste
A3: Residue Quality Monitoring Requirements
A5: Summary of monitoring undertaken and compliance
A6: IBA and APCr are tested in accordance with the site's permit.
A7: IBA is also sampled and analysed in accordance with the ESA protocol.
A13: Commentary on any specific events
A14: Date & Event | C14: Description
A27: Residue Quality Monitoring Results
A28: Parameter (unit) | C28: Limit | D28: Normal Operation
D29: Bottom ash | F29: APC Residues
A30: Loss on Ignition (average %) | C30: <5% | D30: 2.3
A31: Total Organic Carbon (average %) | C31: <3% | D31: 0.9
A32: No. of Assessments Undertaken | C32: --- | D32: 28 | F32: 4
A33: No. of Hazardous Results | C33: --- | D33: 0
A35: Comments :

Sheet Public Liasion
A1: =+'Cover Page'!$B$29 -> Annual Performance Report 2023 | E1: =+'Cover Page'!$B$33 -> Stoke Energy from Waste
A3: Details of Public & Stakeholder Liasion
A5: Summary of events held during the reporting year.
A6: Date | C6: Description
A7: Jan 23- Dec 23 | C7: NMOL conducted monthly meetings with its core stakeholders to discuss operational, health and safety and environmental performance.
A16: List of events planned for next year
A17: Date | C17: Description
A18: Jan 24- Dec 24 | C18: NMOL shall continue to conduct monthly meetings with its core stakeholders to discuss operational, health and safety and environmental performance.
A29: If you wish to be involved in the public liasion programme, please contact _________________

Sheet CO2 N2O
A1: =+'Cover Page'!$B$29 -> Annual Performance Report 2023 | C1: =+'Cover Page'!$B$33 -> Stoke Energy from Waste
A3: Carbon dioxide emissions and biogenic content of waste inputs | F3: Notes:
A5: Carbon dioxide emissions (all types of plant)
B6: Annual mass of carbon dioxide released | C6: tonnes | D6: 174310
B7: Annual mass of carbon dioxide released per tonne of waste burned | C7: t CO2 / t waste | D7: 0.942
B8: Annual mass of carbon dioxide released per MWh of energy exported | C8: t CO2 / MWh export | D8: =D6/'Operational Data'!G24 -> 1.874119709
B9: Description of how annual carbon dioxide mass emission has been calculated. See Note 1 | C9: 0.942 tCO2/t waste as per Tolvik report 2022 | F9: Note 1: Where available, data from CO2 CEMS should be used. Otherwise, only where no CEMS data is available, a suitable emissions factor should be used based on the tonnage of waste burned e.g.0.942 tCO2/t waste as per Tolvik report 2022, or other justified emissions factor - refer to embedded Environment Agency guidance note above or updated version for suitable descriptive text.
A10: Nitrous oxide emissions (only plants which use ammonia or urea to abate NOx emissions)
B11: Annual mass emissions of nitrous oxide | C11: tonnes N2O | D11: 9.4758
B12: Description of how annual nitrous oxide mass emission has been calculated See Note 2 | C12: CEMS data | F12: Note 2: Where available, data from N2O CEMS should be used. If no CEMS data is available, from periodic monitoring. Otherwise, a suitable emissions factor should be used based on the tonnage of waste burned e.g. 0.0981 kgN20/t waste as per 2021 Pollution Inventory data for plants with urea-based SNCR - refer to embedded Environment Agency guidance note above or updated version for suitable descriptive text.
A13: Total annual carbon dioxide and nitrous oxide emissions. See Note 3. | C13: tonnes CO2e | D13: 177133.79 | F13: Note 3: Total annual carbon dioxide and nitrous oxide emissions reported as carbon dioxide equivalent where 1 tonne nitrous oxide is equivalent to 298 tonne carbon dioxide
A14: Biogenic CO2 emissions (See Note 4) | F14: Note 4: Only plants combusting residual municipal waste, refuse derived fuel or solid recovered fuel
B15: Percentage of total carbon dioxide emissions arising from biogenic waste | C15: % | D15: 0.573
B16: No. of measurements undertaken | C16: Number | D16: 0
B17: Description of how percentage biogenic carbon dioxide emissions have been measured or calculated. See Note 5 | F17: Note 5: Examples include direct measurement via C14 method or BIOMA software - refer to embedded Environment Agency guidance note above or updated version for suitable descriptive text, quoting standards where relevant. Otherwise, as an approximation (and in lieu of any more accurate metrics which may be developed in future), the measured or estimated biogenic fraction by net calorific value can be assumed to be the same as the biogenic CO2 fraction of the total CO2 emissions from the plant.
A18: Biogenic fraction of waste feedstock (See Note 4)
B19: Yearly average biogenic percentage of the waste by net calorific value (NCV) | C19: % | D19: 0.5725
B20: If sampling undertaken, no. of samples used to ascertain average biogenic % above | C20: Number | D20: 1
B21: Description of how biogenic percentage (by NCV) has been calculated or estimated. See Note 6 | C21: In accordance with Ofgem-approved fuel measurement and sampling plan. | F21: Note 6: Where available, data from waste sampling should be used; otherwise, an estimated figure with justification can be used, or a figure assumed on the basis of a national average e.g. 2017 WRAP data for residual waste of 51.8% biogenic energy content - refer to embedded Environment Agency guidance note above or updated version for suitable descriptive text, quoting standards where relevant.
B23: Comments:

Sheet Water
A1: =+'Cover Page'!$B$29 -> Annual Performance Report 2023 | E1: =+'Cover Page'!$B$33 -> Stoke Energy from Waste
A3: Emissions to Water
A5: Summary of monitoring undertaken and compliance
A6: Annual sample taken and analysed. All results below limits given in discharge consent.
A8: Waste water arising from the process is neutralised and recycled as far as is practicible in order to minimise the quantity released to sewer.
A13: Commentary on any specific events
A14: Date & Event | C14: Description
A22: Emissions to Water / Sewer
A23: Parameter | D23: Monitoring Frequency | F23: Limit | G23: Target | H23: Max. | I23: Average

Sheet Air (periodic)
A1: =+'Cover Page'!$B$29 -> Annual Performance Report 2023 | E1: =+'Cover Page'!$B$33 -> Stoke Energy from Waste
A3: Emissions to Air (periodically monitored)
A5: Summary of monitoring undertaken, standards used and compliance | K5: Notes:
K6: Template may require adjustment for any bespoke monitoring requirements of permit - please also check that all default ELV values, reference periods and the stated oxygen reference value match those for your plant, and edit if necessary!
A9: Results of emissions to air that are periodically monitored - oxygen reference 6%
A10: Substance | C10: Ref. Period | D10: Emission Limit Value* | F10: Average | K10: User to add additional tables as necessary, depending on whether quarterly or bi-annual reporting is required for the compliance year
F11: A1 | G11: A2 | H11: A3 | I11: A4 | J11: A5
A12: Hydrogen fluoride | C12: 1 hr | D12: 2 mg/m3 | F12: 0.28 | G12: 0.19
A13: Cd and Th and their compounds | C13: 0.5-8hrs | D13: 0.05 mg/m3 | F13: 0.001 | G13: 0.0016
A14: Hg and its compounds | C14: 0.5-8hrs | D14: 0.05 mg/m3 | F14: 0.002 | G14: 0.0039 | K14: * Denotes limits that were in force until 2 December 2023; from 3 December 2023 the following new limits applied (those not listed remained unchanged):
A15: Sb, As, Pb, Cr, Co, Cu, Mn, Ni, V and their compounds | C15: 0.5-8hrs | D15: 0.5 mg/m3 | F15: 0.0386 | G15: 0.0494
A16: Dioxins & Furans (I-TEQ) | C16: 6-8hrs | D16: 0.1 ng/m3 | F16: 0.0139 | G16: 0.0458 | K16: Substance | L16: Reference Period | M16: Emission Limit Value
A17: PCBs (WHO-TEQ Humans / Mammals) | C17: 6-8hrs | D17: None set ng/m3 | F17: 0.001 | G17: 0.0041
A18: PCBs (WHO-TEQ Fish) | C18: 6-8hrs | D18: None set ng/m3 | F18: 0.00017 | G18: 0.00018 | K18: Hydrogen fluoride | L18: Average of three consecutive measurements of at least 30 minutes each | M18: 1 mg/m3
A19: PCBs (WHO-TEQ Birds) | C19: 6-8hrs | D19: None set ng/m3 | F19: 0.00275 | G19: 0.0064 | K19: Cd and Th and their compounds | L19: Average of three consecutive measurements of at least 30 minutes each | M19: 0.02 mg/m3
A20: Dioxins & Furans (WHO-TEQ Humans / Mammals) | C20: 6-8hrs | D20: None set ng/m3 | F20: 0.0132 | G20: 0.0436 | K20: Hg and its compounds | L20: Average of three consecutive measurements of at least 30 minutes each | M20: 0.02 mg/m3
A21: Dioxins & Furans (WHO-TEQ Fish) | C21: 6-8hrs | D21: None set ng/m3 | F21: 0.01485 | G21: 0.05 | K21: Sb, As, Pb, Cr, Co, Cu, Mn, Ni, V and their compounds | L21: Average of three consecutive measurements of at least 30 minutes each | M21: 0.3 mg/m3
A22: Dioxins & Furans (WHO-TEQ Birds) | C22: 6-8hrs | D22: None set ng/m3 | F22: 0.0219 | G22: 0.0865 | K22: Dioxins & Furans (I-TEQ) | L22: 6-8hrs | M22: 0.06 ng/m3
A23: Anthanthrene | C23: 6-8hrs | D23: None set µg/m3 | F23: <0.0015 | G23: <0.002
A24: Benzo(a)anthracene | C24: 6-8hrs | D24: None set µg/m3 | F24: 0 | G24: 0.003
A25: Benzo(a)pyrene | C25: 6-8hrs | D25: None set µg/m3 | F25: <0.0015 | G25: <0.002
A26: Benzo(b)fluoranthene | C26: 6-8hrs | D26: None set µg/m3 | F26: <0.0015 | G26: 0.003
A27: Benzo(b)naptho(2,1-d) thiophene | C27: 6-8hrs | D27: None set µg/m3 | F27: 0.03 | G27: <0.002
A28: Benzo(c)phenanthrene | C28: 6-8hrs | D28: None set µg/m3 | F28: <0.0015 | G28: <0.002
A29: Benzo(ghi)perylene | C29: 6-8hrs | D29: None set µg/m3 | F29: 0 | G29: <0.002
A30: Benzo(k)fluoranthene | C30: 6-8hrs | D30: None set µg/m3 | F30: <0.0015 | G30: <0.002
A31: Cholanthrene | C31: 6-8hrs | D31: None set µg/m3 | F31: <0.0015 | G31: <0.002
A32: Chrysene | C32: 6-8hrs | D32: None set µg/m3 | F32: 0 | G32: 0.004
A33: Cyclopenta(cd)pyrene | C33: 6-8hrs | D33: None set µg/m3 | F33: <0.0015 | G33: <0.002
A34: Dibenzo(ai)pyrene | C34: 6-8hrs | D34: None set µg/m3 | F34: <0.0015 | G34: <0.002
A35: Dibenzo(ah)anthracene | C35: 6-8hrs | D35: None set µg/m3 | F35: <0.0015 | G35: <0.002
A36: Fluoranthene | C36: 6-8hrs | D36: None set µg/m3 | F36: 0.03 | G36: 0.049
A37: Indeno(123-cd) pyrene | C37: 6-8hrs | D37: None set µg/m3 | F37: <0.0015 | G37: <0.002
A38: Naphthalene | C38: 6-8hrs | D38: None set µg/m3 | F38: 1.57 | G38: 0.62
A39: Comments :

Sheet Air (CEMS)
A1: =+'Cover Page'!$B$29 -> Annual Performance Report 2023 | I1: =+'Cover Page'!$B$33 -> Stoke Energy from Waste
A3: Emissions to Air (continously monitored)
N4: Notes:
A5: Summary of monitoring undertaken, standards used and compliance | N5: Template may require adjustment for any bespoke monitoring requirements of permit
N6: Please check that all default ELV values match those for your plant and edit if necessary!
N7: Report to 1 decimal place
A11: Results of emissions to air that are continuously monitored (maximum and average values for each line) - oxygen reference 11%
A12: Substance | B12: Reference Period | C12: Emission Limit Value** | D12: A1 | F12: A2 | H12: A3 | J12: A4 | L12: A5
D13: Max. | E13: Avg. | F13: Max. | G13: Avg. | H13: Max. | I13: Avg. | J13: Max. | K13: Avg. | L13: Max. | M13: Avg. | N13: ** Denotes limits that were in force until 2 December 2023; from 3 December 2023 the following new limits applied (those not listed remained unchanged):
A14: Oxides of nitrogen | B14: Daily mean | C14: 200 mg/m3 | D14: =NOx!O19 -> 185 | E14: =NOx!N19 -> 166.9908333 | F14: =NOx!O34 -> 197 | G14: =NOx!N34 -> 156.5291667
B15: ½ hourly mean | C15: 400 mg/m3 | D15: =NOx!M19 -> 308 | E15: =NOx!L19 -> 167.1666667 | F15: =NOx!M34 -> 350 | G15: =NOx!L34 -> 156.6666667 | N15: Substance | O15: Reference Period | P15: Emission Limit Value
A16: Particulates | B16: Daily mean | C16: 10 mg/m3 | D16: =Particulates!O19 -> 6 | E16: =Particulates!N19 -> 2.484166667 | F16: =Particulates!O34 -> 4 | G16: =Particulates!N34 -> 0.3525
B17: ½ hourly mean | C17: 30 mg/m3 | D17: =Particulates!M19 -> 11 | E17: =Particulates!L19 -> 2.535 | F17: =Particulates!M34 -> 9 | G17: =Particulates!L34 -> 0.4166666667 | N17: Oxides of nitrogen | O17: Daily mean | P17: 180 mg/m3
A18: Total Organic Carbon | B18: Daily mean | C18: 10 mg/m3 | D18: =TOC!O19 -> 1 | E18: =TOC!N19 -> 0.011 | F18: =TOC!O34 -> 1 | G18: =TOC!N34 -> 0.1266666667 | N18: Particulates | O18: Daily mean | P18: 5 mg/m3
B19: ½ hourly mean | C19: 20 mg/m3 | D19: =TOC!M19 -> 15 | E19: =TOC!L19 -> 0.01083333333 | F19: =TOC!M34 -> 11 | G19: =TOC!L34 -> 0.1266666667 | N19: Hydrogen chloride | O19: Daily mean | P19: 8 mg/m3
A20: Hydrogen chloride | B20: Daily mean | C20: 10 mg/m3 | D20: =HCl!O19 -> 12 | E20: =HCl!N19 -> 6.313333333 | F20: =HCl!O34 -> 15 | G20: =HCl!N34 -> 6.825 | N20: Sulphur dioxide | O20: Daily mean | P20: 40 mg/m3
B21: ½ hourly mean | C21: 60 mg/m3 | D21: =HCl!M19 -> 192 | E21: =HCl!L19 -> 6.25 | F21: =HCl!M34 -> 107 | G21: =HCl!L34 -> 6.833333333 | N21: Ammonia | O21: Daily mean | P21: 15 mg/m3
A22: Sulphur dioxide | B22: Daily mean | C22: 50 mg/m3 | D22: ='SO2'!O19 -> 75 | E22: ='SO2'!N19 -> 28.18833333 | F22: ='SO2'!O34 -> 41 | G22: ='SO2'!N34 -> 22.12833333
B23: ½ hourly mean | C23: 200 mg/m3 | D23: ='SO2'!M19 -> 194 | E23: ='SO2'!L19 -> 28.08333333 | F23: ='SO2'!M34 -> 188 | G23: ='SO2'!L34 -> 22
A24: Carbon monoxide | B24: Daily mean | C24: 50 mg/m3 | D24: ='CO 95% 10 min'!Q22 -> 37 | E24: ='CO 95% 10 min'!P22 -> 10.07166667 | F24: ='CO 95% 10 min'!Q37 -> 9 | G24: ='CO 95% 10 min'!P37 -> 0.8291666667
B25: 95%ile 10-min avg * | C25: 150 mg/m3 * | D25: ='CO 95% 10 min'!M22 -> 36.16666667 | E25: ='CO 95% 10 min'!N22 -> 10 | F25: ='CO 95% 10 min'!M37 -> 9.75 | G25: ='CO 95% 10 min'!N37 -> 0.9166666667
A26: Ammonia | B26: Daily mean | C26: No limit set until 03/12/23 | D26: ='NH3'!O19 -> 16 | E26: ='NH3'!N19 -> 5.9975 | F26: ='NH3'!O34 -> 18 | G26: ='NH3'!N34 -> 3.64
A27: ** = delete as appropriate, depending on whether your plant has half-horly or 10-min CO ELVs
A28: Comments :

Sheet HCl
A1: =+'Cover Page'!$B$29 -> Annual Performance Report 2023 | E1: =+'Cover Page'!$B$33 -> Stoke Energy from Waste
A3: Monitoring of Hydrogen Chloride emissions | D3: Whole Installation | G3: See Notes in Cell Q3 | J3: =+A3 -> Monitoring of Hydrogen Chloride emissions | N3: Per Combustion Line | Q3: Notes:
Q4: User to add logic to complete Whole installation, Table A5:G18. From the data in Per Combustion Line, Table J6:O79, subject to No. of lines installed
A5: mg/Nm3 | B5: 1/2 Hourly Reference Periods | E5: Daily Reference Periods | J5: Boiler 1
A6: =+'Cover Page'!C39 -> 2023 | B6: 1/2 hourly HCl ELV | C6: Monthly 1/2 hourly mean | D6: Highest 1/2 hourly maximum | E6: Daily HCl ELV* | F6: Monthly daily mean | G6: Highest daily maximum | J6: =+A6 -> 2023 | K6: mg/Nm3 | L6: Monthly 1/2 hourly mean | M6: Monthly 1/2 hourly maximum | N6: Monthly daily mean | O6: Monthly daily maximum
A7: Jan | B7: 60 | C7: =AVERAGE(L7,L22) -> 7.5 | D7: =MAX(M7,M22) -> 83 | E7: 10 | F7: =AVERAGE(N7,N22) -> 7.675 | G7: =MAX(O7,O22) -> 15 | J7: A1 | K7: Jan | L7: 7 | M7: 21 | N7: 7.32 | O7: 9
A8: Feb | B8: 60 | C8: =AVERAGE(L8,L23) -> 7.5 | D8: =MAX(M8,M23) -> 86 | E8: 10 | F8: =AVERAGE(N8,N23) -> 7.59 | G8: =MAX(O8,O23) -> 10 | K8: Feb | L8: 7 | M8: 24 | N8: 7.07 | O8: 8
A9: Mar | B9: 60 | C9: 7 | D9: 27 | E9: 10 | F9: 7.025 | G9: 9 | K9: Mar | L9: 7 | M9: 16 | N9: 6.71 | O9: 8 | Q9: Whole Installation table A5:G18:
A10: Apr | B10: 60 | C10: 6 | D10: 50 | E10: 10 | F10: 6.1 | G10: 8 | K10: Apr | L10: 5 | M10: 50 | N10: 5.47 | O10: 8 | Q10: Mean: for 1/2 hourly and daily periods calculate mean of values across all operational combustion lines for the month
A11: May | B11: 60 | C11: 6.5 | D11: 79 | E11: 10 | F11: 6.86 | G11: 10 | K11: May | L11: 7 | M11: 79 | N11: 7.39 | O11: 10
A12: Jun | B12: 60 | C12: 7.5 | D12: 107 | E12: 10 | F12: 7.69 | G12: 11 | K12: Jun | L12: 7 | M12: 68 | N12: 7.5 | O12: 10
A13: Jul | B13: 60 | C13: 6.5 | D13: 50 | E13: 10 | F13: 6.755 | G13: 10 | K13: Jul | L13: 7 | M13: 33 | N13: 7.06 | O13: 9 | Q13: Maximum: for 1/2 hourly and daily periods use the highest value across all operational combustion lines for the month
A14: Aug | B14: 60 | C14: 6.5 | D14: 104 | E14: 10 | F14: 6.35 | G14: 8 | K14: Aug | L14: 7 | M14: 104 | N14: 6.73 | O14: 8
A15: Sep | B15: 60 | C15: 6.5 | D15: 28 | E15: 10 | F15: 6.345 | G15: 8 | K15: Sep | L15: 6 | M15: 23 | N15: 5.69 | O15: 7
A16: Oct | B16: 60 | C16: 6 | D16: 192 | E16: 10 | F16: 5.675 | G16: 12 | K16: Oct | L16: 5 | M16: 192 | N16: 4.65 | O16: 12
A17: Nov | B17: 60 | C17: 5.5 | D17: 38 | E17: 10 | F17: 5.36 | G17: 7 | K17: Nov | L17: 5 | M17: 37 | N17: 4.97 | O17: 7
A18: Dec | B18: 60 | C18: 5.5 | D18: 52 | E18: 10 | F18: 5.405 | G18: 9 | K18: Dec | L18: 5 | M18: 52 | N18: 5.2 | O18: 7
E19: * ELV reduced to 8 mg/Nm3 on 3 December 2023 | K19: Annual | L19: =AVERAGE(L7:L18) -> 6.25 | M19: =MAX(M7:M18) -> 192 | N19: =AVERAGE(N7:N18) -> 6.313333333 | O19: =MAX(O7:O18) -> 12
M20: Boiler 2
J21: =+A6 -> 2023 | K21: mg/Nm3 | L21: Monthly 1/2 hourly mean | M21: Monthly 1/2 hourly maximum | N21: Monthly daily mean | O21: Monthly daily maximum
J22: A2 | K22: Jan | L22: 8 | M22: 83 | N22: 8.03 | O22: 15
K23: Feb | L23: 8 | M23: 86 | N23: 8.11 | O23: 10
K24: Mar | L24: 7 | M24: 27 | N24: 7.34 | O24: 9
K25: Apr | L25: 7 | M25: 40 | N25: 6.73 | O25: 8
K26: May | L26: 6 | M26: 31 | N26: 6.33 | O26: 9
K27: Jun | L27: 8 | M27: 107 | N27: 7.88 | O27: 11
K28: Jul | L28: 6 | M28: 50 | N28: 6.45 | O28: 10
K29: Aug | L29: 6 | M29: 61 | N29: 5.97 | O29: 7
K30: Sep | L30: 7 | M30: 28 | N30: 7 | O30: 8
K31: Oct | L31: 7 | M31: 80 | N31: 6.7 | O31: 10
K32: Nov | L32: 6 | M32: 38 | N32: 5.75 | O32: 7
K33: Dec | L33: 6 | M33: 34 | N33: 5.61 | O33: 9
K34: Annual | L34: =AVERAGE(L22:L33) -> 6.833333333 | M34: =MAX(M22:M33) -> 107 | N34: =AVERAGE(N22:N33) -> 6.825 | O34: =MAX(O22:O33) -> 15
J36: =+A6 -> 2023 | K36: mg/Nm3 | L36: Monthly 1/2 hourly mean | M36: Monthly 1/2 hourly maximum | N36: Monthly daily mean | O36: Monthly daily maximum
J37: A3 | K37: Jan
K38: Feb
K39: Mar
K40: Apr
K41: May
K42: Jun
K43: Jul
K44: Aug
K45: Sep
K46: Oct
K47: Nov
A48: Comments : | K48: Dec
K49: Annual | L49: =AVERAGE(L37:L48) ->  | M49: =MAX(M37:M48) -> 0 | N49: =AVERAGE(N37:N48) ->  | O49: =MAX(O37:O48) -> 0
J51: =+A6 -> 2023 | K51: mg/Nm3 | L51: Monthly 1/2 hourly mean | M51: Monthly 1/2 hourly maximum | N51: Monthly daily mean | O51: Monthly daily maximum
J52: A4 | K52: Jan
K53: Feb
K54: Mar
K55: Apr
K56: May
K57: Jun
K58: Jul
K59: Aug
K60: Sep
K61: Oct
K62: Nov
K63: Dec
K64: Annual | L64: =AVERAGE(L52:L63) ->  | M64: =MAX(M52:M63) -> 0 | N64: =AVERAGE(N52:N63) ->  | O64: =MAX(O52:O63) -> 0
J66: =+A6 -> 2023 | K66: mg/Nm3 | L66: Monthly 1/2 hourly mean | M66: Monthly 1/2 hourly maximum | N66: Monthly daily mean | O66: Monthly daily maximum
J67: A5 | K67: Jan
K68: Feb
K69: Mar
K70: Apr
K71: May
K72: Jun
K73: Jul
K74: Aug
K75: Sep
K76: Oct
K77: Nov
K78: Dec
K79: Annual | L79: =AVERAGE(L67:L78) ->  | M79: =MAX(M67:M78) -> 0 | N79: =AVERAGE(N67:N78) ->  | O79: =MAX(O67:O78) -> 0

Sheet SO2
A1: =+'Cover Page'!$B$29 -> Annual Performance Report 2023 | E1: =+'Cover Page'!$B$33 -> Stoke Energy from Waste
A3: Monitoring of Sulphur dioxide emissions | D3: Whole Installation | G3: See Notes in Cell Q3 | J3: =+A3 -> Monitoring of Sulphur dioxide emissions | N3: Per Combustion Line | Q3: Notes:
Q4: User to add logic to complete Whole installation, Table A5:G18. From the data in Per Combustion Line, Table J6:O79, subject to No. of lines installed
A5: mg/Nm3 | B5: 1/2 Hourly Reference Periods | E5: Daily Reference Periods | J5: Boiler 1
A6: =+'Cover Page'!C39 -> 2023 | B6: 1/2 hourly SO2 ELV | C6: Monthly 1/2 hourly mean | D6: Highest 1/2 hourly maximum | E6: Daily SO2 ELV* | F6: Monthly daily mean | G6: Highest daily maximum | J6: =+A6 -> 2023 | K6: mg/Nm3 | L6: Monthly 1/2 hourly mean | M6: Monthly 1/2 hourly maximum | N6: Monthly daily mean | O6: Monthly daily maximum
A7: Jan | B7: 200 | C7: =AVERAGE(L7,L22) -> 27 | D7: =MAX(M7,M22) -> 79 | E7: 50 | F7: =AVERAGE(N7,N22) -> 27.15 | G7: =MAX(O7,O22) -> 39 | J7: A1 | K7: Jan | L7: 31 | M7: 79 | N7: 31.13 | O7: 39
A8: Feb | B8: 200 | C8: =AVERAGE(L8,L23) -> 28 | D8: =MAX(M8,M23) -> 138 | E8: 50 | F8: =AVERAGE(N8,N23) -> 27.965 | G8: =MAX(O8,O23) -> 38 | K8: Feb | L8: 32 | M8: 138 | N8: 32.11 | O8: 38
A9: Mar | B9: 200 | C9: 26 | D9: 84 | E9: 50 | F9: 25.92 | G9: 34 | K9: Mar | L9: 28 | M9: 84 | N9: 28.18 | O9: 34 | Q9: Whole Installation table A5:G18:
A10: Apr | B10: 200 | C10: 24.5 | D10: 141 | E10: 50 | F10: 24.455 | G10: 36 | K10: Apr | L10: 28 | M10: 139 | N10: 27.77 | O10: 36 | Q10: Mean: for 1/2 hourly and daily periods calculate mean of values across all operational combustion lines for the month
A11: May | B11: 200 | C11: 27 | D11: 194 | E11: 50 | F11: 26.91 | G11: 41 | K11: May | L11: 27 | M11: 194 | N11: 27.04 | O11: 32
A12: Jun | B12: 200 | C12: 26 | D12: 164 | E12: 50 | F12: 26.205 | G12: 36 | K12: Jun | L12: 28 | M12: 164 | N12: 28.13 | O12: 36
A13: Jul | B13: 200 | C13: 22 | D13: 141 | E13: 50 | F13: 22.255 | G13: 36 | K13: Jul | L13: 24 | M13: 109 | N13: 24.16 | O13: 36 | Q13: Maximum: for 1/2 hourly and daily periods use the highest value across all operational combustion lines for the month
A14: Aug | B14: 200 | C14: 22 | D14: 110 | E14: 50 | F14: 22.18 | G14: 27 | K14: Aug | L14: 23 | M14: 92 | N14: 23.13 | O14: 27
A15: Sep | B15: 200 | C15: 25.5 | D15: 135 | E15: 50 | F15: 25.61 | G15: 75 | K15: Sep | L15: 33 | M15: 135 | N15: 32.69 | O15: 75
A16: Oct | B16: 200 | C16: 23 | D16: 160 | E16: 50 | F16: 23.43 | G16: 40 | K16: Oct | L16: 29 | M16: 160 | N16: 29.39 | O16: 40
A17: Nov | B17: 200 | C17: 26 | D17: 139 | E17: 50 | F17: 26.31 | G17: 38 | K17: Nov | L17: 30 | M17: 139 | N17: 30.33 | O17: 38
A18: Dec | B18: 200 | C18: 23.5 | D18: 188 | E18: 50 | F18: 23.51 | G18: 39 | K18: Dec | L18: 24 | M18: 131 | N18: 24.2 | O18: 38
E19: * ELV reduced to 40 mg/Nm3 on 3 December 2023 | K19: Annual | L19: =AVERAGE(L7:L18) -> 28.08333333 | M19: =MAX(M7:M18) -> 194 | N19: =AVERAGE(N7:N18) -> 28.18833333 | O19: =MAX(O7:O18) -> 75
M20: Boiler 2
J21: =+A6 -> 2023 | K21: mg/Nm3 | L21: Monthly 1/2 hourly mean | M21: Monthly 1/2 hourly maximum | N21: Monthly daily mean | O21: Monthly daily maximum
J22: A2 | K22: Jan | L22: 23 | M22: 74 | N22: 23.17 | O22: 29
K23: Feb | L23: 24 | M23: 74 | N23: 23.82 | O23: 27
K24: Mar | L24: 24 | M24: 79 | N24: 23.66 | O24: 31
K25: Apr | L25: 21 | M25: 141 | N25: 21.14 | O25: 29
K26: May | L26: 27 | M26: 131 | N26: 26.78 | O26: 41
K27: Jun | L27: 24 | M27: 159 | N27: 24.28 | O27: 33
K28: Jul | L28: 20 | M28: 141 | N28: 20.35 | O28: 36
K29: Aug | L29: 21 | M29: 110 | N29: 21.23 | O29: 26
K30: Sep | L30: 18 | M30: 90 | N30: 18.53 | O30: 27
K31: Oct | L31: 17 | M31: 135 | N31: 17.47 | O31: 24
K32: Nov | L32: 22 | M32: 109 | N32: 22.29 | O32: 33
K33: Dec | L33: 23 | M33: 188 | N33: 22.82 | O33: 39
K34: Annual | L34: =AVERAGE(L22:L33) -> 22 | M34: =MAX(M22:M33) -> 188 | N34: =AVERAGE(N22:N33) -> 22.12833333 | O34: =MAX(O22:O33) -> 41
J36: =+A6 -> 2023 | K36: mg/Nm3 | L36: Monthly 1/2 hourly mean | M36: Monthly 1/2 hourly maximum | N36: Monthly daily mean | O36: Monthly daily maximum
J37: A3 | K37: Jan
K38: Feb
K39: Mar
K40: Apr
K41: May
K42: Jun
K43: Jul
K44: Aug
K45: Sep
K46: Oct
K47: Nov
A48: Comments : | K48: Dec
K49: Annual | L49: =AVERAGE(L37:L48) ->  | M49: =MAX(M37:M48) -> 0 | N49: =AVERAGE(N37:N48) ->  | O49: =MAX(O37:O48) -> 0
J51: =+A6 -> 2023 | K51: mg/Nm3 | L51: Monthly 1/2 hourly mean | M51: Monthly 1/2 hourly maximum | N51: Monthly daily mean | O51: Monthly daily maximum
J52: A4 | K52: Jan
K53: Feb
K54: Mar
K55: Apr
K56: May
K57: Jun
K58: Jul
K59: Aug
K60: Sep
K61: Oct
K62: Nov
K63: Dec
K64: Annual | L64: =AVERAGE(L52:L63) ->  | M64: =MAX(M52:M63) -> 0 | N64: =AVERAGE(N52:N63) ->  | O64: =MAX(O52:O63) -> 0
J66: =+A6 -> 2023 | K66: mg/Nm3 | L66: Monthly 1/2 hourly mean | M66: Monthly 1/2 hourly maximum | N66: Monthly daily mean | O66: Monthly daily maximum
J67: A5 | K67: Jan
K68: Feb
K69: Mar
K70: Apr
K71: May
K72: Jun
K73: Jul
K74: Aug
K75: Sep
K76: Oct
K77: Nov
K78: Dec
K79: Annual | L79: =AVERAGE(L67:L78) ->  | M79: =MAX(M67:M78) -> 0 | N79: =AVERAGE(N67:N78) ->  | O79: =MAX(O67:O78) -> 0

Sheet NOx
A1: =+'Cover Page'!$B$29 -> Annual Performance Report 2023 | E1: =+'Cover Page'!$B$33 -> Stoke Energy from Waste
A3: Monitoring of Oxides of Nitrogen emissions | D3: Whole Installation | G3: See Notes in Cell Q3 | J3: =+A3 -> Monitoring of Oxides of Nitrogen emissions | N3: Per Combustion Line | Q3: Notes:
Q4: User to add logic to complete Whole installation, Table A5:G18. From the data in Per Combustion Line, Table J6:O79, subject to No. of lines installed
A5: mg/Nm3 | B5: 1/2 Hourly Reference Periods | E5: Daily Reference Periods
A6: =+'Cover Page'!C39 -> 2023 | B6: 1/2 hourly NOx ELV | C6: Monthly 1/2 hourly mean | D6: Highest 1/2 hourly maximum | E6: Daily NOx ELV* | F6: Monthly daily mean | G6: Highest daily maximum | J6: =+A6 -> 2023 | K6: mg/Nm3 | L6: Monthly 1/2 hourly mean | M6: Monthly 1/2 hourly maximum | N6: Monthly daily mean | O6: Monthly daily maximum
A7: Jan | B7: 400 | C7: =AVERAGE(L7,L22) -> 168.5 | D7: =MAX(M7,M22) -> 308 | E7: 200 | F7: =AVERAGE(N7,N22) -> 168.425 | G7: =MAX(O7,O22) -> 182 | J7: A1 | K7: Jan | L7: 178 | M7: 308 | N7: 177.71 | O7: 182
A8: Feb | B8: 400 | C8: =AVERAGE(L8,L23) -> 166 | D8: =MAX(M8,M23) -> 314 | E8: 200 | F8: =AVERAGE(N8,N23) -> 165.875 | G8: =MAX(O8,O23) -> 197 | K8: Feb | L8: 178 | M8: 219 | N8: 178 | O8: 179
A9: Mar | B9: 400 | C9: 156.5 | D9: 278 | E9: 200 | F9: 156.45 | G9: 175 | K9: Mar | L9: 163 | M9: 278 | N9: 163 | O9: 171 | Q9: Whole Installation table A5:G18:
A10: Apr | B10: 400 | C10: 172 | D10: 279 | E10: 200 | F10: 172 | G10: 182 | K10: Apr | L10: 175 | M10: 254 | N10: 175 | O10: 181 | Q10: Mean: for 1/2 hourly and daily periods calculate mean of values across all operational combustion lines for the month
A11: May | B11: 400 | C11: 161 | D11: 287 | E11: 200 | F11: 161.1 | G11: 182 | K11: May | L11: 178 | M11: 259 | N11: 177.87 | O11: 182
A12: Jun | B12: 400 | C12: 148 | D12: 288 | E12: 200 | F12: 147.495 | G12: 180 | K12: Jun | L12: 158 | M12: 288 | N12: 157.47 | O12: 180
A13: Jul | B13: 400 | C13: 128 | D13: 236 | E13: 200 | F13: 127.77 | G13: 163 | K13: Jul | L13: 134 | M13: 214 | N13: 133.77 | O13: 163 | Q13: Maximum: for 1/2 hourly and daily periods use the highest value across all operational combustion lines for the month
A14: Aug | B14: 400 | C14: 176.5 | D14: 283 | E14: 200 | F14: 176.555 | G14: 185 | K14: Aug | L14: 178 | M14: 241 | N14: 178.17 | O14: 185
A15: Sep | B15: 400 | C15: 174 | D15: 350 | E15: 200 | F15: 173.665 | G15: 185 | K15: Sep | L15: 173 | M15: 228 | N15: 172.5 | O15: 178
A16: Oct | B16: 400 | C16: 163 | D16: 265 | E16: 200 | F16: 162.85 | G16: 172 | K16: Oct | L16: 162 | M16: 233 | N16: 162.03 | O16: 164
A17: Nov | B17: 400 | C17: 164 | D17: 288 | E17: 200 | F17: 163.61 | G17: 169 | K17: Nov | L17: 162 | M17: 288 | N17: 161.4 | O17: 164
A18: Dec | B18: 400 | C18: 165.5 | D18: 281 | E18: 200 | F18: 165.325 | G18: 178 | K18: Dec | L18: 167 | M18: 281 | N18: 166.97 | O18: 178
E19: * ELV reduced to 180 mg/Nm3 on 3 December 2023 | K19: Annual | L19: =AVERAGE(L7:L18) -> 167.1666667 | M19: =MAX(M7:M18) -> 308 | N19: =AVERAGE(N7:N18) -> 166.9908333 | O19: =MAX(O7:O18) -> 185
J21: =+A6 -> 2023 | K21: mg/Nm3 | L21: Monthly 1/2 hourly mean | M21: Monthly 1/2 hourly maximum | N21: Monthly daily mean | O21: Monthly daily maximum
J22: A2 | K22: Jan | L22: 159 | M22: 294 | N22: 159.14 | O22: 170
K23: Feb | L23: 154 | M23: 314 | N23: 153.75 | O23: 197
K24: Mar | L24: 150 | M24: 252 | N24: 149.9 | O24: 175
K25: Apr | L25: 169 | M25: 279 | N25: 169 | O25: 182
K26: May | L26: 144 | M26: 287 | N26: 144.33 | O26: 168
K27: Jun | L27: 138 | M27: 284 | N27: 137.52 | O27: 173
K28: Jul | L28: 122 | M28: 236 | N28: 121.77 | O28: 148
K29: Aug | L29: 175 | M29: 283 | N29: 174.94 | O29: 185
K30: Sep | L30: 175 | M30: 350 | N30: 174.83 | O30: 185
K31: Oct | L31: 164 | M31: 265 | N31: 163.67 | O31: 172
K32: Nov | L32: 166 | M32: 259 | N32: 165.82 | O32: 169
K33: Dec | L33: 164 | M33: 262 | N33: 163.68 | O33: 168
K34: Annual | L34: =AVERAGE(L22:L33) -> 156.6666667 | M34: =MAX(M22:M33) -> 350 | N34: =AVERAGE(N22:N33) -> 156.5291667 | O34: =MAX(O22:O33) -> 197
J36: =+A6 -> 2023 | K36: mg/Nm3 | L36: Monthly 1/2 hourly mean | M36: Monthly 1/2 hourly maximum | N36: Monthly daily mean | O36: Monthly daily maximum
J37: A3 | K37: Jan
K38: Feb
K39: Mar
K40: Apr
K41: May
K42: Jun
K43: Jul
K44: Aug
K45: Sep
K46: Oct
K47: Nov
A48: Comments : | K48: Dec
K49: Annual | L49: =AVERAGE(L37:L48) ->  | M49: =MAX(M37:M48) -> 0 | N49: =AVERAGE(N37:N48) ->  | O49: =MAX(O37:O48) -> 0
J51: =+A6 -> 2023 | K51: mg/Nm3 | L51: Monthly 1/2 hourly mean | M51: Monthly 1/2 hourly maximum | N51: Monthly daily mean | O51: Monthly daily maximum
J52: A4 | K52: Jan
K53: Feb
K54: Mar
K55: Apr
K56: May
K57: Jun
K58: Jul
K59: Aug
K60: Sep
K61: Oct
K62: Nov
K63: Dec
K64: Annual | L64: =AVERAGE(L52:L63) ->  | M64: =MAX(M52:M63) -> 0 | N64: =AVERAGE(N52:N63) ->  | O64: =MAX(O52:O63) -> 0
J66: =+A6 -> 2023 | K66: mg/Nm3 | L66: Monthly 1/2 hourly mean | M66: Monthly 1/2 hourly maximum | N66: Monthly daily mean | O66: Monthly daily maximum
J67: A5 | K67: Jan
K68: Feb
K69: Mar
K70: Apr
K71: May
K72: Jun
K73: Jul
K74: Aug
K75: Sep
K76: Oct
K77: Nov
K78: Dec
K79: Annual | L79: =AVERAGE(L67:L78) ->  | M79: =MAX(M67:M78) -> 0 | N79: =AVERAGE(N67:N78) ->  | O79: =MAX(O67:O78) -> 0

Sheet TOC
A1: =+'Cover Page'!$B$29 -> Annual Performance Report 2023 | E1: =+'Cover Page'!$B$33 -> Stoke Energy from Waste
A3: Monitoring of Total organic carbon emissions | D3: Whole Installation | G3: See Notes in Cell Q3 | J3: =+A3 -> Monitoring of Total organic carbon emissions | N3: Per Combustion Line | Q3: Notes:
Q4: User to add logic to complete Whole installation, Table A5:G18. From the data in Per Combustion Line, Table J6:O79, subject to No. of lines installed
A5: mg/Nm3 | B5: 1/2 Hourly Reference Periods | E5: Daily Reference Periods
A6: =+'Cover Page'!C39 -> 2023 | B6: 1/2 hourly TOC ELV | C6: Monthly 1/2 hourly mean | D6: Highest 1/2 hourly maximum | E6: Daily TOC ELV | F6: Monthly daily mean | G6: Highest daily maximum | J6: =+A6 -> 2023 | K6: mg/Nm3 | L6: Monthly 1/2 hourly mean | M6: Monthly 1/2 hourly maximum | N6: Monthly daily mean | O6: Monthly daily maximum
A7: Jan | B7: 20 | C7: =AVERAGE(L7,L22) -> 0.015 | D7: =MAX(M7,M22) -> 7 | E7: 10 | F7: =AVERAGE(N7,N22) -> 0.016 | G7: =MAX(O7,O22) -> 1 | J7: A1 | K7: Jan | L7: 0.03 | M7: 7 | N7: 0.032 | O7: 1
A8: Feb | B8: 20 | C8: =AVERAGE(L8,L23) -> 0 | D8: =MAX(M8,M23) -> 4 | E8: 10 | F8: =AVERAGE(N8,N23) -> 0 | G8: =MAX(O8,O23) -> 0 | K8: Feb | L8: 0 | M8: 3 | N8: 0 | O8: 0
A9: Mar | B9: 20 | C9: 0 | D9: 7 | E9: 10 | F9: 0 | G9: 0 | K9: Mar | L9: 0 | M9: 7 | N9: 0 | O9: 0 | Q9: Whole Installation table A5:G18:
A10: Apr | B10: 20 | C10: 0 | D10: 6 | E10: 10 | F10: 0 | G10: 0 | K10: Apr | L10: 0 | M10: 5 | N10: 0 | O10: 0 | Q10: Mean: for 1/2 hourly and daily periods calculate mean of values across all operational combustion lines for the month
A11: May | B11: 20 | C11: 0.465 | D11: 8 | E11: 10 | F11: 0.465 | G11: 1 | K11: May | L11: 0.04 | M11: 8 | N11: 0.04 | O11: 1
A12: Jun | B12: 20 | C12: 0.26 | D12: 4 | E12: 10 | F12: 0.26 | G12: 1 | K12: Jun | L12: 0 | M12: 4 | N12: 0 | O12: 0
A13: Jul | B13: 20 | C13: 0.03 | D13: 6 | E13: 10 | F13: 0.03 | G13: 1 | K13: Jul | L13: 0.06 | M13: 6 | N13: 0.06 | O13: 1 | Q13: Maximum: for 1/2 hourly and daily periods use the highest value across all operational combustion lines for the month
A14: Aug | B14: 20 | C14: 0 | D14: 5 | E14: 10 | F14: 0 | G14: 0 | K14: Aug | L14: 0 | M14: 5 | N14: 0 | O14: 0
A15: Sep | B15: 20 | C15: 0 | D15: 11 | E15: 10 | F15: 0 | G15: 0 | K15: Sep | L15: 0 | M15: 11 | N15: 0 | O15: 0
A16: Oct | B16: 20 | C16: 0 | D16: 15 | E16: 10 | F16: 0 | G16: 0 | K16: Oct | L16: 0 | M16: 15 | N16: 0 | O16: 0
A17: Nov | B17: 20 | C17: 0 | D17: 10 | E17: 10 | F17: 0 | G17: 0 | K17: Nov | L17: 0 | M17: 10 | N17: 0 | O17: 0
A18: Dec | B18: 20 | C18: =AVERAGE(L18,L33) -> 0.055 | D18: 11 | E18: 10 | F18: 0.055 | G18: 1 | K18: Dec | L18: 0 | M18: 5 | N18: 0 | O18: 0
K19: Annual | L19: =AVERAGE(L7:L18) -> 0.01083333333 | M19: =MAX(M7:M18) -> 15 | N19: =AVERAGE(N7:N18) -> 0.011 | O19: =MAX(O7:O18) -> 1
J21: =+A6 -> 2023 | K21: mg/Nm3 | L21: Monthly 1/2 hourly mean | M21: Monthly 1/2 hourly maximum | N21: Monthly daily mean | O21: Monthly daily maximum
J22: A2 | K22: Jan | L22: 0 | M22: 2 | N22: 0 | O22: 0
K23: Feb | L23: 0 | M23: 4 | N23: 0 | O23: 0
K24: Mar | L24: 0 | M24: 1 | N24: 0 | O24: 0
K25: Apr | L25: 0 | M25: 6 | N25: 0 | O25: 0
K26: May | L26: 0.89 | M26: 1 | N26: 0.89 | O26: 1
K27: Jun | L27: 0.52 | M27: 4 | N27: 0.52 | O27: 1
K28: Jul | L28: 0 | M28: 2 | N28: 0 | O28: 0
K29: Aug | L29: 0 | M29: 5 | N29: 0 | O29: 0
K30: Sep | L30: 0 | M30: 4 | N30: 0 | O30: 0
K31: Oct | L31: 0 | M31: 9 | N31: 0 | O31: 0
K32: Nov | L32: 0 | M32: 5 | N32: 0 | O32: 0
K33: Dec | L33: 0.11 | M33: 11 | N33: 0.11 | O33: 1
K34: Annual | L34: =AVERAGE(L22:L33) -> 0.1266666667 | M34: =MAX(M22:M33) -> 11 | N34: =AVERAGE(N22:N33) -> 0.1266666667 | O34: =MAX(O22:O33) -> 1
J36: =+A6 -> 2023 | K36: mg/Nm3 | L36: Monthly 1/2 hourly mean | M36: Monthly 1/2 hourly maximum | N36: Monthly daily mean | O36: Monthly daily maximum
J37: A3 | K37: Jan
K38: Feb
K39: Mar
K40: Apr
K41: May
K42: Jun
K43: Jul
K44: Aug
K45: Sep
K46: Oct
K47: Nov
A48: Comments : | K48: Dec
K49: Annual | L49: =AVERAGE(L37:L48) ->  | M49: =MAX(M37:M48) -> 0 | N49: =AVERAGE(N37:N48) ->  | O49: =MAX(O37:O48) -> 0
J51: =+A6 -> 2023 | K51: mg/Nm3 | L51: Monthly 1/2 hourly mean | M51: Monthly 1/2 hourly maximum | N51: Monthly daily mean | O51: Monthly daily maximum
J52: A4 | K52: Jan
K53: Feb
K54: Mar
K55: Apr
K56: May
K57: Jun
K58: Jul
K59: Aug
K60: Sep
K61: Oct
K62: Nov
K63: Dec
K64: Annual | L64: =AVERAGE(L52:L63) ->  | M64: =MAX(M52:M63) -> 0 | N64: =AVERAGE(N52:N63) ->  | O64: =MAX(O52:O63) -> 0
J66: =+A6 -> 2023 | K66: mg/Nm3 | L66: Monthly 1/2 hourly mean | M66: Monthly 1/2 hourly maximum | N66: Monthly daily mean | O66: Monthly daily maximum
J67: A5 | K67: Jan
K68: Feb
K69: Mar
K70: Apr
K71: May
K72: Jun
K73: Jul
K74: Aug
K75: Sep
K76: Oct
K77: Nov
K78: Dec
K79: Annual | L79: =AVERAGE(L67:L78) ->  | M79: =MAX(M67:M78) -> 0 | N79: =AVERAGE(N67:N78) ->  | O79: =MAX(O67:O78) -> 0

Sheet Particulates
A1: =+'Cover Page'!$B$29 -> Annual Performance Report 2023 | E1: =+'Cover Page'!$B$33 -> Stoke Energy from Waste
A3: Monitoring of Particulate matter emissions | D3: Whole Installation | G3: See Notes in Cell Q3 | J3: =+A3 -> Monitoring of Particulate matter emissions | N3: Per Combustion Line | Q3: Notes:
Q4: User to add logic to complete Whole installation, Table A5:G18. From the data in Per Combustion Line, Table J6:O79, subject to No. of lines installed
A5: mg/Nm3 | B5: 1/2 Hourly Reference Periods | E5: Daily Reference Periods
A6: =+'Cover Page'!C39 -> 2023 | B6: 1/2 hourly PM ELV | C6: Monthly 1/2 hourly mean | D6: Highest 1/2 hourly maximum | E6: Daily PM ELV* | F6: Monthly daily mean | G6: Highest daily maximum | J6: =+A6 -> 2023 | K6: mg/Nm3 | L6: Monthly 1/2 hourly mean | M6: Monthly 1/2 hourly maximum | N6: Monthly daily mean | O6: Monthly daily maximum
A7: Jan | B7: 30 | C7: =AVERAGE(L7,L22) -> 1.21 | D7: =MAX(M7,M22) -> 8 | E7: 10 | F7: =AVERAGE(N7,N22) -> 1.21 | G7: =MAX(O7,O22) -> 4 | J7: A1 | K7: Jan | L7: 2.42 | M7: 8 | N7: 2.42 | O7: 4
A8: Feb | B8: 30 | C8: =AVERAGE(L8,L23) -> 1 | D8: =MAX(M8,M23) -> 9 | E8: 10 | F8: =AVERAGE(N8,N23) -> 1 | G8: =MAX(O8,O23) -> 2 | K8: Feb | L8: 2 | M8: 5 | N8: 2 | O8: 2
A9: Mar | B9: 30 | C9: 1.5 | D9: 6 | E9: 10 | F9: 1.305 | G9: 4 | K9: Mar | L9: 3 | M9: 6 | N9: 2.61 | O9: 4 | Q9: Whole Installation table A5:G18:
A10: Apr | B10: 30 | C10: 1.5 | D10: 10 | E10: 10 | F10: 1.535 | G10: 6 | K10: Apr | L10: 3 | M10: 10 | N10: 3.07 | O10: 6 | Q10: Mean: for 1/2 hourly and daily periods calculate mean of values across all operational combustion lines for the month
A11: May | B11: 30 | C11: 2 | D11: 9 | E11: 10 | F11: 1.845 | G11: 4 | K11: May | L11: 3 | M11: 7 | N11: 3.13 | O11: 4
A12: Jun | B12: 30 | C12: 1.5 | D12: 9 | E12: 10 | F12: 1.465 | G12: 5 | K12: Jun | L12: 3 | M12: 9 | N12: 2.93 | O12: 5
A13: Jul | B13: 30 | C13: 1.5 | D13: 10 | E13: 10 | F13: 1.63 | G13: 5 | K13: Jul | L13: 3 | M13: 10 | N13: 2.94 | O13: 5 | Q13: Maximum: for 1/2 hourly and daily periods use the highest value across all operational combustion lines for the month
A14: Aug | B14: 30 | C14: 2 | D14: 8 | E14: 10 | F14: 2.02 | G14: 4 | K14: Aug | L14: 2 | M14: 6 | N14: 2.33 | O14: 4
A15: Sep | B15: 30 | C15: 1.5 | D15: 6 | E15: 10 | F15: 1.19 | G15: 4 | K15: Sep | L15: 3 | M15: 6 | N15: 2.38 | O15: 4
A16: Oct | B16: 30 | C16: 1 | D16: 4 | E16: 10 | F16: 1.035 | G16: 2 | K16: Oct | L16: 2 | M16: 4 | N16: 2 | O16: 2
A17: Nov | B17: 30 | C17: 1.5 | D17: 5 | E17: 10 | F17: 1.23 | G17: 2 | K17: Nov | L17: 2 | M17: 5 | N17: 2 | O17: 2
A18: Dec | B18: 30 | C18: 1.5 | D18: 11 | E18: 10 | F18: 1.555 | G18: 2 | K18: Dec | L18: 2 | M18: 11 | N18: 2 | O18: 2
E19: * ELV reduced to 5 mg/Nm3 on 3 December 2023 | K19: Annual | L19: =AVERAGE(L7:L18) -> 2.535 | M19: =MAX(M7:M18) -> 11 | N19: =AVERAGE(N7:N18) -> 2.484166667 | O19: =MAX(O7:O18) -> 6
J21: =+A6 -> 2023 | K21: mg/Nm3 | L21: Monthly 1/2 hourly mean | M21: Monthly 1/2 hourly maximum | N21: Monthly daily mean | O21: Monthly daily maximum
J22: A2 | K22: Jan | L22: 0 | M22: 1 | N22: 0 | O22: 0
K23: Feb | L23: 0 | M23: 9 | N23: 0 | O23: 0
K24: Mar | L24: 0 | M24: 1 | N24: 0 | O24: 0
K25: Apr | L25: 0 | M25: 0 | N25: 0 | O25: 0
K26: May | L26: 1 | M26: 9 | N26: 0.56 | O26: 4
K27: Jun | L27: 0 | M27: 3 | N27: 0 | O27: 0
K28: Jul | L28: 0 | M28: 1 | N28: 0.32 | O28: 1
K29: Aug | L29: 2 | M29: 8 | N29: 1.71 | O29: 3
K30: Sep | L30: 0 | M30: 1 | N30: 0 | O30: 0
K31: Oct | L31: 0 | M31: 2 | N31: 0.07 | O31: 1
K32: Nov | L32: 1 | M32: 4 | N32: 0.46 | O32: 1
K33: Dec | L33: 1 | M33: 5 | N33: 1.11 | O33: 2
K34: Annual | L34: =AVERAGE(L22:L33) -> 0.4166666667 | M34: =MAX(M22:M33) -> 9 | N34: =AVERAGE(N22:N33) -> 0.3525 | O34: =MAX(O22:O33) -> 4
J36: =+A6 -> 2023 | K36: mg/Nm3 | L36: Monthly 1/2 hourly mean | M36: Monthly 1/2 hourly maximum | N36: Monthly daily mean | O36: Monthly daily maximum
J37: A3 | K37: Jan
K38: Feb
K39: Mar
K40: Apr
K41: May
K42: Jun
K43: Jul
K44: Aug
K45: Sep
K46: Oct
K47: Nov
A48: Comments : | K48: Dec
K49: Annual | L49: =AVERAGE(L37:L48) ->  | M49: =MAX(M37:M48) -> 0 | N49: =AVERAGE(N37:N48) ->  | O49: =MAX(O37:O48) -> 0
J51: =+A6 -> 2023 | K51: mg/Nm3 | L51: Monthly 1/2 hourly mean | M51: Monthly 1/2 hourly maximum | N51: Monthly daily mean | O51: Monthly daily maximum
J52: A4 | K52: Jan
K53: Feb
K54: Mar
K55: Apr
K56: May
K57: Jun
K58: Jul
K59: Aug
K60: Sep
K61: Oct
K62: Nov
K63: Dec
K64: Annual | L64: =AVERAGE(L52:L63) ->  | M64: =MAX(M52:M63) -> 0 | N64: =AVERAGE(N52:N63) ->  | O64: =MAX(O52:O63) -> 0
J66: =+A6 -> 2023 | K66: mg/Nm3 | L66: Monthly 1/2 hourly mean | M66: Monthly 1/2 hourly maximum | N66: Monthly daily mean | O66: Monthly daily maximum
J67: A5 | K67: Jan
K68: Feb
K69: Mar
K70: Apr
K71: May
K72: Jun
K73: Jul
K74: Aug
K75: Sep
K76: Oct
K77: Nov
K78: Dec
K79: Annual | L79: =AVERAGE(L67:L78) ->  | M79: =MAX(M67:M78) -> 0 | N79: =AVERAGE(N67:N78) ->  | O79: =MAX(O67:O78) -> 0

Sheet CO 0.5 hourly
A1: =+'Cover Page'!$B$29 -> Annual Performance Report 2023 | E1: =+'Cover Page'!$B$33 -> Stoke Energy from Waste
A3: Monitoring of Carbon Monoxide (half hourly) | D3: Whole Installation | G3: See Notes in Cell Q3 | J3: =+A3 -> Monitoring of Carbon Monoxide (half hourly) | N3: Per Combustion Line | Q3: Notes:
A5: Please complete this tab for your plant if you have 1/2 hourly CO ELVs; otherwise, leave it blank and complete the CO 95% 10 min tab
Q7: User to add logic to complete Whole installation, Table A5:G18. From the data in Per Combustion Line, Table J6:O79, subject to No. of lines installed
A8: mg/Nm3 | B8: 1/2 Hourly Reference Periods | E8: Daily Reference Periods
A9: =+'Cover Page'!C39 -> 2023 | B9: 1/2 hourly CO ELV | C9: Monthly 1/2 hourly mean | D9: Highest 1/2 hourly maximum | E9: Daily CO ELV | F9: Monthly daily mean | G9: Highest daily maximum | J9: =+A9 -> 2023 | K9: mg/Nm3 | L9: Monthly 1/2 hourly mean | M9: Monthly 1/2 hourly maximum | N9: Monthly daily mean | O9: Monthly daily maximum
A10: Jan | B10: 100 | E10: 50 | J10: A1 | K10: Jan
A11: Feb | B11: =+B10 -> 100 | E11: =+E10 -> 50 | K11: Feb
A12: Mar | B12: =+B11 -> 100 | E12: =+E11 -> 50 | K12: Mar | Q12: Whole Installation table A5:G18:
A13: Apr | B13: 100 | E13: 50 | K13: Apr | Q13: Mean: for 1/2 hourly and daily periods calculate mean of values across all operational combustion lines for the month
A14: May | B14: 100 | E14: 50 | K14: May
A15: Jun | B15: 100 | E15: 50 | K15: Jun
A16: Jul | B16: 100 | E16: 50 | K16: Jul | Q16: Maximum: for 1/2 hourly and daily periods use the highest value across all operational combustion lines for the month
A17: Aug | B17: 100 | E17: 50 | K17: Aug
A18: Sep | B18: 100 | E18: 50 | K18: Sep
A19: Oct | B19: 100 | E19: 50 | K19: Oct
A20: Nov | B20: 100 | E20: 50 | K20: Nov
A21: Dec | B21: 100 | E21: 50 | K21: Dec
K22: Annual | L22: =AVERAGE(L10:L21) ->  | M22: =MAX(M10:M21) -> 0 | N22: =AVERAGE(N10:N21) ->  | O22: =MAX(O10:O21) -> 0
J24: =+A9 -> 2023 | K24: mg/Nm3 | L24: Monthly 1/2 hourly mean | M24: Monthly 1/2 hourly maximum | N24: Monthly daily mean | O24: Monthly daily maximum
J25: A2 | K25: Jan
K26: Feb
K27: Mar
K28: Apr
K29: May
K30: Jun
K31: Jul
K32: Aug
K33: Sep
K34: Oct
K35: Nov
K36: Dec
K37: Annual | L37: =AVERAGE(L25:L36) ->  | M37: =MAX(M25:M36) -> 0 | N37: =AVERAGE(N25:N36) ->  | O37: =MAX(O25:O36) -> 0
J39: =+A9 -> 2023 | K39: mg/Nm3 | L39: Monthly 1/2 hourly mean | M39: Monthly 1/2 hourly maximum | N39: Monthly daily mean | O39: Monthly daily maximum
J40: A3 | K40: Jan
K41: Feb
K42: Mar
K43: Apr
K44: May
K45: Jun
K46: Jul
K47: Aug
K48: Sep
K49: Oct
K50: Nov
A51: Comments : | K51: Dec
K52: Annual | L52: =AVERAGE(L40:L51) ->  | M52: =MAX(M40:M51) -> 0 | N52: =AVERAGE(N40:N51) ->  | O52: =MAX(O40:O51) -> 0
J54: =+A9 -> 2023 | K54: mg/Nm3 | L54: Monthly 1/2 hourly mean | M54: Monthly 1/2 hourly maximum | N54: Monthly daily mean | O54: Monthly daily maximum
J55: A4 | K55: Jan
K56: Feb
K57: Mar
K58: Apr
K59: May
K60: Jun
K61: Jul
K62: Aug
K63: Sep
K64: Oct
K65: Nov
K66: Dec
K67: Annual | L67: =AVERAGE(L55:L66) ->  | M67: =MAX(M55:M66) -> 0 | N67: =AVERAGE(N55:N66) ->  | O67: =MAX(O55:O66) -> 0
J69: =+A9 -> 2023 | K69: mg/Nm3 | L69: Monthly 1/2 hourly mean | M69: Monthly 1/2 hourly maximum | N69: Monthly daily mean | O69: Monthly daily maximum
J70: A5 | K70: Jan
K71: Feb
K72: Mar
K73: Apr
K74: May
K75: Jun
K76: Jul
K77: Aug
K78: Sep
K79: Oct
K80: Nov
K81: Dec
K82: Annual | L82: =AVERAGE(L70:L81) ->  | M82: =MAX(M70:M81) -> 0 | N82: =AVERAGE(N70:N81) ->  | O82: =MAX(O70:O81) -> 0

Sheet CO 95% 10 min
A1: =+'Cover Page'!$B$29 -> Annual Performance Report 2023 | E1: =+'Cover Page'!$B$33 -> Stoke Energy from Waste
A3: Monitoring of Carbon Monoxide (10-minute avg) | E3: Whole Installation | H3: See Notes in Cell S3 | J3: =+A3 -> Monitoring of Carbon Monoxide (10-minute avg) | O3: Per Combustion Line | Q3: Notes: | S3: Notes:
A5: Please complete this tab for your plant if you have 10-minute average CO ELVs; otherwise, leave it blank and complete the CO 0.5 hourly tab
S7: User to add logic to complete Whole installation, Table A5:H18. From the data in Per Combustion Line, Table K6:Q79, subject to No. of lines installed
A8: mg/Nm3 | B8: 10-minute Reference Periods | F8: Daily Reference Periods
A9: =+'Cover Page'!C39 -> 2023 | B9: 95%ile 10-min avg CO ELV | C9: 95%ile 10-min avg maximum | D9: Monthly CO 10-min avg mean | E9: 10-min avg maximum | F9: Daily CO ELV | G9: Monthly daily mean | H9: Highest daily maximum | K9: =+A9 -> 2023 | L9: mg/Nm3 | M9: 95%ile 10-min avg maximum | N9: Monthly CO 10-min avg mean | O9: 10-min avg maximum | P9: Monthly daily mean | Q9: Monthly daily maximum
A10: Jan | B10: 150 | C10: =MAX(M10,M25) -> 43 | D10: =AVERAGE(N10,N25) -> 7.5 | E10: =MAX(O10,O25) -> 303 | F10: 50 | G10: =AVERAGE(P10,P25) -> 7.165 | H10: =MAX(Q10,Q25) -> 20 | K10: A1 | L10: Jan | M10: 43 | N10: 13 | O10: 303 | P10: 12.81 | Q10: 20
A11: Feb | B11: =+B10 -> 150 | C11: =MAX(M11,M26) -> 22 | D11: =AVERAGE(N11,N26) -> 5 | E11: =MAX(O11,O26) -> 281 | F11: =+F10 -> 50 | G11: =AVERAGE(P11,P26) -> 4.895 | H11: =MAX(Q11,Q26) -> 12 | L11: Feb | M11: 22 | N11: 9 | O11: 200 | P11: 9 | Q11: 12
A12: Mar | B12: =+B11 -> 150 | C12: 37 | D12: 6 | E12: 426 | F12: =+F11 -> 50 | G12: 5.82 | H12: 20 | L12: Mar | M12: 37 | N12: 11 | O12: 278 | P12: 10.71 | Q12: 20 | S12: Whole Installation table A5:H18:
A13: Apr | B13: 150 | C13: 30 | D13: 5 | E13: 388 | F13: 50 | G13: 4.95 | H13: 15 | L13: Apr | M13: 30 | N13: 9 | O13: 279 | P13: 9.17 | Q13: 15 | S13: Mean: for 10-min and daily periods use average of all operational combustion lines.
A14: May | B14: 150 | C14: 21 | D14: 4 | E14: 276 | F14: 50 | G14: 4.175 | H14: 11 | L14: May | M14: 21 | N14: 7 | O14: 261 | P14: 7.35 | Q14: 11
A15: Jun | B15: 150 | C15: 23 | D15: 2.5 | E15: 272 | F15: 50 | G15: 2.795 | H15: 10 | L15: Jun | M15: 23 | N15: 5 | O15: 129 | P15: 5.07 | Q15: 10
A16: Jul | B16: 150 | C16: 42 | D16: 3.5 | E16: 117 | F16: 50 | G16: 3.565 | H16: 10 | L16: Jul | M16: 42 | N16: 7 | O16: 117 | P16: 7 | Q16: 10 | S16: Maximum: for 10-min and daily periods use the highest of all operational combustion lines in any month.
A17: Aug | B17: 150 | C17: 19 | D17: 4 | E17: 159 | F17: 50 | G17: 4.06 | H17: 11 | L17: Aug | M17: 19 | N17: 8 | O17: 159 | P17: 7.83 | Q17: 11
A18: Sep | B18: 150 | C18: 51 | D18: 6.5 | E18: 240 | F18: 50 | G18: 7.215 | H18: 37 | L18: Sep | M18: 51 | N18: 13 | O18: 240 | P18: 14.06 | Q18: 37
A19: Oct | B19: 150 | C19: 56 | D19: 7.5 | E19: 302 | F19: 50 | G19: 7.36 | H19: 20 | L19: Oct | M19: 56 | N19: 13 | O19: 297 | P19: 13.19 | Q19: 20
A20: Nov | B20: 150 | C20: 42 | D20: 8.5 | E20: 529 | F20: 50 | G20: 8.225 | H20: 20 | L20: Nov | M20: 42 | N20: 15 | O20: 529 | P20: 14.77 | Q20: 20
A21: Dec | B21: 150 | C21: 48 | D21: 5.5 | E21: 299 | F21: 50 | G21: 5.18 | H21: 25 | L21: Dec | M21: 48 | N21: 10 | O21: 299 | P21: 9.9 | Q21: 25
L22: Annual | M22: =AVERAGE(M10:M21) -> 36.16666667 | N22: =AVERAGE(N10:N21) -> 10 | O22: =MAX(O10:O21) -> 529 | P22: =AVERAGE(P10:P21) -> 10.07166667 | Q22: =MAX(Q10:Q21) -> 37
K24: =+A9 -> 2023 | L24: mg/Nm3 | M24: 95%ile 10-min avg maximum | N24: Monthly CO 10-min avg mean | O24: 10-min avg maximum | P24: Monthly daily mean | Q24: Monthly daily maximum
K25: A2 | L25: Jan | M25: 12 | N25: 2 | O25: 140 | P25: 1.52 | Q25: 5
L26: Feb | M26: 6 | N26: 1 | O26: 281 | P26: 0.79 | Q26: 3
L27: Mar | M27: 8 | N27: 1 | O27: 426 | P27: 0.93 | Q27: 4
L28: Apr | M28: 9 | N28: 1 | O28: 388 | P28: 0.73 | Q28: 5
L29: May | M29: 5 | N29: 1 | O29: 276 | P29: 1 | Q29: 3
L30: Jun | M30: 3 | N30: 0 | O30: 272 | P30: 0.52 | Q30: 9
L31: Jul | M31: 12 | N31: 0 | O31: 48 | P31: 0.13 | Q31: 2
L32: Aug | M32: 2 | N32: 0 | O32: 64 | P32: 0.29 | Q32: 1
L33: Sep | M33: 3 | N33: 0 | O33: 94 | P33: 0.37 | Q33: 1
L34: Oct | M34: 13 | N34: 2 | O34: 302 | P34: 1.53 | Q34: 5
L35: Nov | M35: 13 | N35: 2 | O35: 313 | P35: 1.68 | Q35: 6
L36: Dec | M36: 31 | N36: 1 | O36: 67 | P36: 0.46 | Q36: 4
L37: Annual | M37: =AVERAGE(M25:M36) -> 9.75 | N37: =AVERAGE(N25:N36) -> 0.9166666667 | O37: =MAX(O25:O36) -> 426 | P37: =AVERAGE(P25:P36) -> 0.8291666667 | Q37: =MAX(Q25:Q36) -> 9
K39: =+A9 -> 2023 | L39: mg/Nm3 | M39: 95%ile 10-min avg maximum | N39: Monthly CO 10-min avg mean | O39: 10-min avg maximum | P39: Monthly daily mean | Q39: Monthly daily maximum
K40: A3 | L40: Jan
L41: Feb
L42: Mar
L43: Apr
L44: May
L45: Jun
L46: Jul
L47: Aug
L48: Sep
L49: Oct
L50: Nov
A51: Comments : | L51: Dec
A52: Environment Agency explanatory note: The 10-minute average ELV is based on the “95th percentile”. In this case this means that 95% of the 10 minute averages in the relevant 24-hour period (i.e. 137) must be below 150 mg/Nm3, and 5% (i.e. 7) are allowed to be any value above 150 mg/Nm3. Whilst we expect operators to minimise CO emissions at all times, it is perfectly acceptable for the value of the maximum 10-minute average to be above 150 mg/Nm3, provided the 95th percentile ELV has been met for that period. | L52: Annual | M52: =AVERAGE(M40:M51) ->  | O52: =MAX(O40:O51) -> 0 | P52: =AVERAGE(P40:P51) ->  | Q52: =MAX(Q40:Q51) -> 0
K54: =+A9 -> 2023 | L54: mg/Nm3 | M54: 95%ile 10-min avg maximum | N54: Monthly CO 10-min avg mean | O54: 10-min avg maximum | P54: Monthly daily mean | Q54: Monthly daily maximum
K55: A4 | L55: Jan
L56: Feb
L57: Mar
L58: Apr
L59: May
L60: Jun
L61: Jul
L62: Aug
L63: Sep
L64: Oct
L65: Nov
L66: Dec
L67: Annual | M67: =AVERAGE(M55:M66) ->  | O67: =MAX(O55:O66) -> 0 | P67: =AVERAGE(P55:P66) ->  | Q67: =MAX(Q55:Q66) -> 0
K69: =+A9 -> 2023 | L69: mg/Nm3 | M69: 95%ile 10-min avg maximum | N69: Monthly CO 10-min avg mean | O69: 10-min avg maximum | P69: Monthly daily mean | Q69: Monthly daily maximum
K70: A5 | L70: Jan
L71: Feb
L72: Mar
L73: Apr
L74: May
L75: Jun
L76: Jul
L77: Aug
L78: Sep
L79: Oct
L80: Nov
L81: Dec
L82: Annual | M82: =AVERAGE(M70:M81) ->  | O82: =MAX(O70:O81) -> 0 | P82: =AVERAGE(P70:P81) ->  | Q82: =MAX(Q70:Q81) -> 0

Sheet NH3
A1: =+'Cover Page'!$B$29 -> Annual Performance Report 2023 | E1: =+'Cover Page'!$B$33 -> Stoke Energy from Waste
A3: Monitoring of Ammnonia emissions | D3: Whole Installation | G3: See Notes in Cell Q3 | J3: =+A3 -> Monitoring of Ammnonia emissions | N3: Per Combustion Line | Q3: Notes:
Q4: User to add logic to complete Whole installation, Table A5:G18. From the data in Per Combustion Line, Table J6:O79, subject to No. of lines installed
A5: mg/Nm3 | B5: 1/2 Hourly Reference Periods | E5: Daily Reference Periods
A6: =+'Cover Page'!C39 -> 2023 | B6: 1/2 hourly NH3 ELV | C6: Monthly 1/2 hourly mean | D6: Highest 1/2 hourly maximum | E6: Daily NH3 ELV* | F6: Monthly daily mean | G6: Highest daily maximum | J6: =+A6 -> 2023 | K6: mg/Nm3 | L6: Monthly 1/2 hourly mean | M6: Monthly 1/2 hourly maximum | N6: Monthly daily mean | O6: Monthly daily maximum
A7: Jan | B7: None | C7: =AVERAGE(L7,L22) -> 4.5 | D7: =MAX(M7,M22) -> 56 | E7: None | F7: =AVERAGE(N7,N22) -> 4.545 | G7: =MAX(O7,O22) -> 9 | J7: A1 | K7: Jan | L7: 5 | M7: 56 | N7: 5.26 | O7: 9
A8: Feb | B8: =+B7 -> None | C8: =AVERAGE(L8,L23) -> 4 | D8: =MAX(M8,M23) -> 29 | E8: None | F8: =AVERAGE(N8,N23) -> 4.125 | G8: =MAX(O8,O23) -> 10 | K8: Feb | L8: 4 | M8: 29 | N8: 4.32 | O8: 10
A9: Mar | B9: =+B8 -> None | C9: 5 | D9: 35 | E9: None | F9: 5.175 | G9: 10 | K9: Mar | L9: 7 | M9: 35 | N9: 7.11 | O9: 10 | Q9: Whole Installation table A5:G18:
A10: Apr | B10: None | C10: 3.5 | D10: 50 | E10: None | F10: 3.515 | G10: 12 | K10: Apr | L10: 5 | M10: 41 | N10: 5.2 | O10: 12 | Q10: Mean: for 1/2 hourly and daily periods calculate mean of values across all operational combustion lines for the month
A11: May | B11: None | C11: 4 | D11: 20 | E11: None | F11: 3.605 | G11: 8 | K11: May | L11: 4 | M11: 16 | N11: 3.65 | O11: 5
A12: Jun | B12: None | C12: 4 | D12: 24 | E12: None | F12: 3.8 | G12: 11 | K12: Jun | L12: 6 | M12: 24 | N12: 6 | O12: 11
A13: Jul | B13: None | C13: 5 | D13: 27 | E13: None | F13: 4.92 | G13: 14 | K13: Jul | L13: 9 | M13: 27 | N13: 8.9 | O13: 14 | Q13: Maximum: for 1/2 hourly and daily periods use the highest value across all operational combustion lines for the month
A14: Aug | B14: None | C14: 3.5 | D14: 24 | E14: None | F14: 3.14 | G14: 6 | K14: Aug | L14: 4 | M14: 24 | N14: 3.7 | O14: 5
A15: Sep | B15: None | C15: 5.5 | D15: 54 | E15: None | F15: 5.31 | G15: 9 | K15: Sep | L15: 6 | M15: 39 | N15: 5.69 | O15: 9
A16: Oct | B16: None | C16: 10 | D16: 92 | E16: None | F16: 9.7 | G16: 18 | K16: Oct | L16: 7 | M16: 47 | N16: 6.77 | O16: 11
A17: Nov | B17: None | C17: 6 | D17: 79 | E17: None | F17: 5.965 | G17: 18 | K17: Nov | L17: 8 | M17: 49 | N17: 7.57 | O17: 12
A18: Dec | B18: None | C18: 4.125 | D18: 63 | E18: 15 | F18: 4.025 | G18: 16 | K18: Dec | L18: 8 | M18: 63 | N18: 7.8 | O18: 16
E19: * ELV came into force on 3 December 2023 | K19: Annual | L19: =AVERAGE(L7:L18) -> 6.083333333 | M19: =MAX(M7:M18) -> 63 | N19: =AVERAGE(N7:N18) -> 5.9975 | O19: =MAX(O7:O18) -> 16
J21: =+A6 -> 2023 | K21: mg/Nm3 | L21: Monthly 1/2 hourly mean | M21: Monthly 1/2 hourly maximum | N21: Monthly daily mean | O21: Monthly daily maximum
J22: A2 | K22: Jan | L22: 4 | M22: 19 | N22: 3.83 | O22: 7
K23: Feb | L23: 4 | M23: 23 | N23: 3.93 | O23: 9
K24: Mar | L24: 3 | M24: 26 | N24: 3.24 | O24: 9
K25: Apr | L25: 2 | M25: 50 | N25: 1.83 | O25: 5
K26: May | L26: 4 | M26: 20 | N26: 3.56 | O26: 8
K27: Jun | L27: 2 | M27: 20 | N27: 1.6 | O27: 5
K28: Jul | L28: 1 | M28: 14 | N28: 0.94 | O28: 3
K29: Aug | L29: 3 | M29: 24 | N29: 2.58 | O29: 6
K30: Sep | L30: 5 | M30: 54 | N30: 4.93 | O30: 9
K31: Oct | L31: 13 | M31: 92 | N31: 12.63 | O31: 18
K32: Nov | L32: 4 | M32: 79 | N32: 4.36 | O32: 18
K33: Dec | L33: 0.25 | M33: 13 | N33: 0.25 | O33: 2
K34: Annual | L34: =AVERAGE(L22:L33) -> 3.770833333 | M34: =MAX(M22:M33) -> 92 | N34: =AVERAGE(N22:N33) -> 3.64 | O34: =MAX(O22:O33) -> 18
J36: =+A6 -> 2023 | K36: mg/Nm3 | L36: Monthly 1/2 hourly mean | M36: Monthly 1/2 hourly maximum | N36: Monthly daily mean | O36: Monthly daily maximum
J37: A3 | K37: Jan
K38: Feb
K39: Mar
K40: Apr
K41: May
K42: Jun
K43: Jul
K44: Aug
K45: Sep
K46: Oct
K47: Nov
A48: Comments : | K48: Dec
A49: An indicated ELV value of zero in the table above means that no ammonia limit is/was set in the permit. | K49: Annual | L49: =AVERAGE(L37:L48) ->  | M49: =MAX(M37:M48) -> 0 | N49: =AVERAGE(N37:N48) ->  | O49: =MAX(O37:O48) -> 0
J51: =+A6 -> 2023 | K51: mg/Nm3 | L51: Monthly 1/2 hourly mean | M51: Monthly 1/2 hourly maximum | N51: Monthly daily mean | O51: Monthly daily maximum
J52: A4 | K52: Jan
K53: Feb
K54: Mar
K55: Apr
K56: May
K57: Jun
K58: Jul
K59: Aug
K60: Sep
K61: Oct
K62: Nov
K63: Dec
K64: Annual | L64: =AVERAGE(L52:L63) ->  | M64: =MAX(M52:M63) -> 0 | N64: =AVERAGE(N52:N63) ->  | O64: =MAX(O52:O63) -> 0
J66: =+A6 -> 2023 | K66: mg/Nm3 | L66: Monthly 1/2 hourly mean | M66: Monthly 1/2 hourly maximum | N66: Monthly daily mean | O66: Monthly daily maximum
J67: A5 | K67: Jan
K68: Feb
K69: Mar
K70: Apr
K71: May
K72: Jun
K73: Jul
K74: Aug
K75: Sep
K76: Oct
K77: Nov
K78: Dec
K79: Annual | L79: =AVERAGE(L67:L78) ->  | M79: =MAX(M67:M78) -> 0 | N79: =AVERAGE(N67:N78) ->  | O79: =MAX(O67:O78) -> 0
